{"text_format":"1","workbook":"xlsx","n_sheets":4,"sheets":["Instruções de uso","Resumo","Analítico","Base de dados"],"not_rendered":{"charts":3,"images":7,"macros":1,"external_links":0,"defined_names":4,"comments":0,"pivot_tables":3},"unopened":[],"bounds":{"document_bytes":16777216,"sheet_cells":100000,"rows_first":2000,"rows_last":500,"rows_between":2000,"halvings":0,"cell_chars":16384,"cell_head_chars":4096},"cells_cut":0,"cells_raw":0,"read":"whole","date_system":"1900"}

{"sheet":"Instruções de uso","index":0,"n_rows":0,"n_cols":0,"rows_kept":0,"cut":false,"hidden":false,"merged":[]}

{"sheet":"Resumo","index":1,"n_rows":0,"n_cols":0,"rows_kept":0,"cut":false,"hidden":false,"merged":[]}

{"sheet":"Analítico","index":2,"n_rows":97,"n_cols":15,"rows_kept":97,"cut":false,"hidden":false,"merged":[[3,0,3,10],[1,0,1,11],[2,0,2,11]]}
[]
[]
[]
[]
[]
[]
[null,"MESES","JANEIRO","FEVEREIRO","MARÇO","ABRIL","MAIO","JUNHO","JULHO","AGOSTO","SETEMBRO","OUTUBRO","NOVEMBRO","DEZEMBRO","TOTAL"]
[null,"Receita Total",{"$f":"C19","v":0},{"$f":"D19","v":0},0,0,0,0,0,0,0,0,0,0,{"$f":"SUM(C8:N8)","v":0}]
[null,"Despesa Total",{"$f":"C87","v":0},{"$f":"D87","v":0},0,0,0,0,0,0,0,0,0,0,{"$f":"SUM(C9:N9)","v":0}]
[null,"Resultado Mensal",{"$f":"C8-C9","v":0},{"$f":"D8-D9","v":0},0,0,0,0,0,0,0,0,0,0,0]
[null,"Investimentos Total",{"$f":"C97","v":0},{"$f":"D97","v":0},0,0,0,0,0,0,0,0,0,0,0]
[]
[]
[null,"RECEITAS / RENDAS"]
[null,"Salário 1",null,null,null,null,null,null,null,null,null,null,null,null,{"$f":"SUM(C15:N15)","v":0}]
[null,"Salário 2",null,null,null,null,null,null,null,null,null,null,null,null,{"$f":"SUM(C16:N16)","v":0}]
[null,"Renda Extra (aluguel)",null,null,null,null,null,null,null,null,null,null,null,null,0]
[]
[null,"Receita/Renda Total",{"$f":"SUM(C15:C17)","v":0},0,0,0,0,0,0,0,0,0,0,0,0]
[]
[null,"DESPESAS"]
[null,"1. Residência"]
[null,"Aluguel",null,null,null,null,null,null,null,null,null,null,null,null,{"$f":"SUM(C23:N23)","v":0}]
[null,"Prestação Imóvel",null,null,null,null,null,null,null,null,null,null,null,null,{"$f":"SUM(C24:N24)","v":0}]
[null,"Água",null,null,null,null,null,null,null,null,null,null,null,null,0]
[null,"Luz",null,null,null,null,null,null,null,null,null,null,null,null,0]
[null,"Gás",null,null,null,null,null,null,null,null,null,null,null,null,0]
[null,"Condomínio",null,null,null,null,null,null,null,null,null,null,null,null,0]
[null,"IPTU",null,null,null,null,null,null,null,null,null,null,null,null,0]
[null,"Internet",null,null,null,null,null,null,null,null,null,null,null,null,0]
[null,"TV à cabo",null,null,null,null,null,null,null,null,null,null,null,null,0]
[null,"Assinaturas",null,null,null,null,null,null,null,null,null,null,null,null,0]
[null,"Telefone Celular 1",null,null,null,null,null,null,null,null,null,null,null,null,0]
[null,"Telefone Celular 2",null,null,null,null,null,null,null,null,null,null,null,null,0]
[]
[null,"1. Residência Total",{"$f":"SUM(C23:C34)","v":0},{"$f":"SUM(D23:D34)","v":0},0,0,0,0,0,0,0,0,0,0,0]
[]
[null,"2. Alimentação"]
[null,"Supermercado",null,null,null,null,null,null,null,null,null,null,null,null,{"$f":"SUM(C39:N39)","v":0}]
[null,"Restaurantes",null,null,null,null,null,null,null,null,null,null,null,null,0]
[null,"Padaria",null,null,null,null,null,null,null,null,null,null,null,null,0]
[null,"Feira",null,null,null,null,null,null,null,null,null,null,null,null,0]
[]
[null,"2. Alimentação Total",{"$f":"SUM(C39:C42)","v":0},{"$f":"SUM(D39:D42)","v":0},0,0,0,0,0,0,0,0,0,0,0]
[]
[null,"3. Saúde"]
[null,"Gastos Médicos",null,null,null,null,null,null,null,null,null,null,null,null,{"$f":"SUM(C47:N47)","v":0}]
[null,"Dentista",null,null,null,null,null,null,null,null,null,null,null,null,{"$f":"SUM(C48:N48)","v":0}]
[null,"Plano de Saúde",null,null,null,null,null,null,null,null,null,null,null,null,0]
[null,"Farmácia",null,null,null,null,null,null,null,null,null,null,null,null,0]
[]
[null,"3. Saúde Total",{"$f":"SUM(C47:C50)","v":0},{"$f":"SUM(D47:D50)","v":0},0,0,0,0,0,0,0,0,0,0,0]
[]
[null,"4. Transporte"]
[null,"Parcela Automóvel",null,null,null,null,null,null,null,null,null,null,null,null,{"$f":"SUM(C55:N55)","v":0}]
[null,"Seguro",null,null,null,null,null,null,null,null,null,null,null,null,0]
[null,"Combustível",null,null,null,null,null,null,null,null,null,null,null,null,0]
[null,"Manuteção automóvel",null,null,null,null,null,null,null,null,null,null,null,null,0]
[null,"IPVA + Licenciamento",null,null,null,null,null,null,null,null,null,null,null,null,0]
[null,"Uber / Táxi",null,null,null,null,null,null,null,null,null,null,null,null,0]
[]
[null,"4. Transporte Total",{"$f":"SUM(C55:C60)","v":0},{"$f":"SUM(D55:D60)","v":0},0,0,0,0,0,0,0,0,0,0,0]
[]
[null,"5. Lazer"]
[null,"Cinema",null,null,null,null,null,null,null,null,null,null,null,null,{"$f":"SUM(C65:N65)","v":0}]
[null,"Academia",null,null,null,null,null,null,null,null,null,null,null,null,0]
[null,"Outros",null,null,null,null,null,null,null,null,null,null,null,null,0]
[]
[null,"5. Lazer Total",{"$f":"SUM(C65:C67)","v":0},{"$f":"SUM(D65:D67)","v":0},0,0,0,0,0,0,0,0,0,0,{"$f":"SUM(O65:O67)","v":0}]
[]
[null,"6. Outros Gastos"]
[null,"Associações",null,null,null,null,null,null,null,null,null,null,null,null,{"$f":"SUM(C72:N72)","v":0}]
[null,"Educação",null,null,null,null,null,null,null,null,null,null,null,null,0]
[null,"Educação Filhos",null,null,null,null,null,null,null,null,null,null,null,null,0]
[null,"Eletrodomésticos",null,null,null,null,null,null,null,null,null,null,null,null,0]
[null,"Gastos com Pet",null,null,null,null,null,null,null,null,null,null,null,null,0]
[null,"Impostos",null,null,null,null,null,null,null,null,null,null,null,null,0]
[null,"Manutenção",null,null,null,null,null,null,null,null,null,null,null,null,0]
[null,"Material Escolar",null,null,null,null,null,null,null,null,null,null,null,null,0]
[null,"Outros",null,null,null,null,null,null,null,null,null,null,null,null,0]
[null,"Outros Seguros",null,null,null,null,null,null,null,null,null,null,null,null,0]
[null,"Presentes",null,null,null,null,null,null,null,null,null,null,null,null,0]
[null,"Roupas",null,null,null,null,null,null,null,null,null,null,null,null,0]
[]
[null,"6. Outros Gastos Totais",{"$f":"SUM(C72:C83)","v":0},{"$f":"SUM(D72:D83)","v":0},0,0,0,0,0,0,0,0,0,0,0]
[]
[null,"Despesas Totais",{"$f":"C36+C44+C52+C62+C69+C85","v":0},{"$f":"D36+D44+D52+D62+D69+D85","v":0},0,0,0,0,0,0,0,0,0,0,0]
[]
[null,"INVESTIMENTOS"]
[null,"Previdência Privada",null,null,null,null,null,null,null,null,null,null,null,null,{"$f":"SUM(C90:N90)","v":0}]
[null,"Renda Variável",null,null,null,null,null,null,null,null,null,null,null,null,0]
[null,"Renda Fixa",null,null,null,null,null,null,null,null,null,null,null,null,0]
[null,"Tesouro Direto",null,null,null,null,null,null,null,null,null,null,null,null,0]
[null,"Fundos de Investimentos",null,null,null,null,null,null,null,null,null,null,null,null,0]
[null,"Outros",null,null,null,null,null,null,null,null,null,null,null,null,0]
[]
[null,"Investimento Total",{"$f":"SUM(C90:C95)","v":0},{"$f":"SUM(D90:D95)","v":0},0,0,0,0,0,0,0,0,0,0,0]

{"sheet":"Base de dados","index":3,"n_rows":601,"n_cols":22,"rows_kept":601,"cut":false,"hidden":true,"merged":[]}
[null,"Grupo","Subgrupo","Item","Mês","Data","Valor",null,null,null,null,null,null,null,null,null,null,null,null,null,"Grupo","Despesa"]
[null,"Receita","Receita",{"$f":"Analítico!$B$15","v":"Salário 1"},"JANEIRO","2024-01-01",{"$f":"Analítico!C15","v":0},null,null,null,null,"Rótulos de Linha","Soma de Valor",null,null,null,"Rótulos de Linha","Soma de Valor"]
[null,"Receita","Receita",{"$f":"Analítico!$B$16","v":"Salário 2"},"JANEIRO","2024-01-01",{"$f":"Analítico!C16","v":0},null,null,null,null,"Despesa",0,null,null,null,"Alimentação",0,null,null,"Rótulos de Linha","Soma de Valor"]
[null,"Receita","Receita",{"$f":"Analítico!$B$17","v":"Renda Extra (aluguel)"},"JANEIRO","2024-01-01",{"$f":"Analítico!C17","v":0},null,null,null,null,"Investimentos",0,null,null,null,"Lazer",0,null,null,"Academia",0]
[null,"Despesa","Residência",{"$f":"Analítico!$B$23","v":"Aluguel"},"JANEIRO","2024-01-01",{"$f":"Analítico!C23","v":0},null,null,null,null,"Receita",0,null,null,null,"Outros Gastos",0,null,null,"Água",0]
[null,"Despesa","Residência",{"$f":"Analítico!$B$24","v":"Prestação Imóvel"},"JANEIRO","2024-01-01",{"$f":"Analítico!C24","v":0},null,null,null,null,"Total Geral",0,null,null,null,"Residência",0,null,null,"Aluguel",0]
[null,"Despesa","Residência",{"$f":"Analítico!$B$25","v":"Água"},"JANEIRO","2024-01-01",{"$f":"Analítico!C25","v":0},null,null,null,null,null,null,null,null,null,"Saúde",0,null,null,"Assinaturas",0]
[null,"Despesa","Residência",{"$f":"Analítico!$B$26","v":"Luz"},"JANEIRO","2024-01-01",{"$f":"Analítico!C26","v":0},null,null,null,null,null,null,null,null,null,"Transporte",0,null,null,"Associações",0]
[null,"Despesa","Residência",{"$f":"Analítico!$B$27","v":"Gás"},"JANEIRO","2024-01-01",{"$f":"Analítico!C27","v":0},null,null,null,null,null,null,null,null,null,"Total Geral",0,null,null,"Cinema",0]
[null,"Despesa","Residência",{"$f":"Analítico!$B$28","v":"Condomínio"},"JANEIRO","2024-01-01",{"$f":"Analítico!C28","v":0},null,null,null,null,null,null,null,null,null,null,null,null,null,"Combustível",0]
[null,"Despesa","Residência",{"$f":"Analítico!$B$29","v":"IPTU"},"JANEIRO","2024-01-01",{"$f":"Analítico!C29","v":0},null,null,null,null,null,null,null,null,null,null,null,null,null,"Condomínio",0]
[null,"Despesa","Residência",{"$f":"Analítico!$B$30","v":"Internet"},"JANEIRO","2024-01-01",{"$f":"Analítico!C30","v":0},null,null,null,null,null,null,null,null,null,null,null,null,null,"Dentista",0]
[null,"Despesa","Residência",{"$f":"Analítico!$B$31","v":"TV à cabo"},"JANEIRO","2024-01-01",{"$f":"Analítico!C31","v":0},null,null,null,null,null,null,null,null,null,null,null,null,null,"Educação",0]
[null,"Despesa","Residência",{"$f":"Analítico!$B$32","v":"Assinaturas"},"JANEIRO","2024-01-01",{"$f":"Analítico!C32","v":0},null,null,null,null,null,null,null,null,null,null,null,null,null,"Educação Filhos",0]
[null,"Despesa","Residência",{"$f":"Analítico!$B$33","v":"Telefone Celular 1"},"JANEIRO","2024-01-01",{"$f":"Analítico!C33","v":0},null,null,null,null,null,null,null,null,null,null,null,null,null,"Eletrodomésticos",0]
[null,"Despesa","Residência",{"$f":"Analítico!$B$34","v":"Telefone Celular 2"},"JANEIRO","2024-01-01",{"$f":"Analítico!C34","v":0},null,null,null,null,null,null,null,null,null,null,null,null,null,"Farmácia",0]
[null,"Despesa","Alimentação",{"$f":"Analítico!$B$39","v":"Supermercado"},"JANEIRO","2024-01-01",{"$f":"Analítico!C39","v":0},null,null,null,null,null,null,null,null,null,null,null,null,null,"Feira",0]
[null,"Despesa","Alimentação",{"$f":"Analítico!$B$40","v":"Restaurantes"},"JANEIRO","2024-01-01",{"$f":"Analítico!C40","v":0},null,null,null,null,null,null,null,null,null,null,null,null,null,"Gás",0]
[null,"Despesa","Alimentação",{"$f":"Analítico!$B$41","v":"Padaria"},"JANEIRO","2024-01-01",{"$f":"Analítico!C41","v":0},null,null,null,null,null,null,null,null,null,null,null,null,null,"Gastos com Pet",0]
[null,"Despesa","Alimentação",{"$f":"Analítico!$B$42","v":"Feira"},"JANEIRO","2024-01-01",{"$f":"Analítico!C42","v":0},null,null,null,null,null,null,null,null,null,null,null,null,null,"Gastos Médicos",0]
[null,"Despesa","Saúde",{"$f":"Analítico!$B$47","v":"Gastos Médicos"},"JANEIRO","2024-01-01",{"$f":"Analítico!C47","v":0},null,null,null,null,null,null,null,null,null,null,null,null,null,"Impostos",0]
[null,"Despesa","Saúde",{"$f":"Analítico!$B$48","v":"Dentista"},"JANEIRO","2024-01-01",{"$f":"Analítico!C48","v":0},null,null,null,null,null,null,null,null,null,null,null,null,null,"Internet",0]
[null,"Despesa","Saúde",{"$f":"Analítico!$B$49","v":"Plano de Saúde"},"JANEIRO","2024-01-01",{"$f":"Analítico!C49","v":0},null,null,null,null,null,null,null,null,null,null,null,null,null,"IPTU",0]
[null,"Despesa","Saúde",{"$f":"Analítico!$B$50","v":"Farmácia"},"JANEIRO","2024-01-01",{"$f":"Analítico!C50","v":0},null,null,null,null,null,null,null,null,null,null,null,null,null,"IPVA + Licenciamento",0]
[null,"Despesa","Transporte",{"$f":"Analítico!$B$55","v":"Parcela Automóvel"},"JANEIRO","2024-01-01",{"$f":"Analítico!C55","v":0},null,null,null,null,null,null,null,null,null,null,null,null,null,"Luz",0]
[null,"Despesa","Transporte",{"$f":"Analítico!$B$56","v":"Seguro"},"JANEIRO","2024-01-01",{"$f":"Analítico!C56","v":0},null,null,null,null,null,null,null,null,null,null,null,null,null,"Manuteção automóvel",0]
[null,"Despesa","Transporte",{"$f":"Analítico!$B$57","v":"Combustível"},"JANEIRO","2024-01-01",{"$f":"Analítico!C57","v":0},null,null,null,null,null,null,null,null,null,null,null,null,null,"Manutenção",0]
[null,"Despesa","Transporte",{"$f":"Analítico!$B$58","v":"Manuteção automóvel"},"JANEIRO","2024-01-01",{"$f":"Analítico!C58","v":0},null,null,null,null,null,null,null,null,null,null,null,null,null,"Material Escolar",0]
[null,"Despesa","Transporte",{"$f":"Analítico!$B$59","v":"IPVA + Licenciamento"},"JANEIRO","2024-01-01",{"$f":"Analítico!C59","v":0},null,null,null,null,null,null,null,null,null,null,null,null,null,"Outros",0]
[null,"Despesa","Transporte",{"$f":"Analítico!$B$60","v":"Uber / Táxi"},"JANEIRO","2024-01-01",{"$f":"Analítico!C60","v":0},null,null,null,null,null,null,null,null,null,null,null,null,null,"Outros Seguros",0]
[null,"Despesa","Lazer",{"$f":"Analítico!$B$65","v":"Cinema"},"JANEIRO","2024-01-01",{"$f":"Analítico!C65","v":0},null,null,null,null,null,null,null,null,null,null,null,null,null,"Padaria",0]
[null,"Despesa","Lazer",{"$f":"Analítico!$B$66","v":"Academia"},"JANEIRO","2024-01-01",{"$f":"Analítico!C66","v":0},null,null,null,null,null,null,null,null,null,null,null,null,null,"Parcela Automóvel",0]
[null,"Despesa","Lazer",{"$f":"Analítico!$B$67","v":"Outros"},"JANEIRO","2024-01-01",{"$f":"Analítico!C67","v":0},null,null,null,null,null,null,null,null,null,null,null,null,null,"Plano de Saúde",0]
[null,"Despesa","Outros Gastos",{"$f":"Analítico!$B$72","v":"Associações"},"JANEIRO","2024-01-01",{"$f":"Analítico!C72","v":0},null,null,null,null,null,null,null,null,null,null,null,null,null,"Presentes",0]
[null,"Despesa","Outros Gastos",{"$f":"Analítico!$B$73","v":"Educação"},"JANEIRO","2024-01-01",{"$f":"Analítico!C73","v":0},null,null,null,null,null,null,null,null,null,null,null,null,null,"Prestação Imóvel",0]
[null,"Despesa","Outros Gastos",{"$f":"Analítico!$B$74","v":"Educação Filhos"},"JANEIRO","2024-01-01",{"$f":"Analítico!C74","v":0},null,null,null,null,null,null,null,null,null,null,null,null,null,"Restaurantes",0]
[null,"Despesa","Outros Gastos",{"$f":"Analítico!$B$75","v":"Eletrodomésticos"},"JANEIRO","2024-01-01",{"$f":"Analítico!C75","v":0},null,null,null,null,null,null,null,null,null,null,null,null,null,"Roupas",0]
[null,"Despesa","Outros Gastos",{"$f":"Analítico!$B$76","v":"Gastos com Pet"},"JANEIRO","2024-01-01",{"$f":"Analítico!C76","v":0},null,null,null,null,null,null,null,null,null,null,null,null,null,"Seguro",0]
[null,"Despesa","Outros Gastos",{"$f":"Analítico!$B$77","v":"Impostos"},"JANEIRO","2024-01-01",{"$f":"Analítico!C77","v":0},null,null,null,null,null,null,null,null,null,null,null,null,null,"Supermercado",0]
[null,"Despesa","Outros Gastos",{"$f":"Analítico!$B$78","v":"Manutenção"},"JANEIRO","2024-01-01",{"$f":"Analítico!C78","v":0},null,null,null,null,null,null,null,null,null,null,null,null,null,"Telefone Celular 1",0]
[null,"Despesa","Outros Gastos",{"$f":"Analítico!$B$79","v":"Material Escolar"},"JANEIRO","2024-01-01",{"$f":"Analítico!C79","v":0},null,null,null,null,null,null,null,null,null,null,null,null,null,"Telefone Celular 2",0]
[null,"Despesa","Outros Gastos",{"$f":"Analítico!$B$80","v":"Outros"},"JANEIRO","2024-01-01",{"$f":"Analítico!C80","v":0},null,null,null,null,null,null,null,null,null,null,null,null,null,"TV à cabo",0]
[null,"Despesa","Outros Gastos",{"$f":"Analítico!$B$81","v":"Outros Seguros"},"JANEIRO","2024-01-01",{"$f":"Analítico!C81","v":0},null,null,null,null,null,null,null,null,null,null,null,null,null,"Uber / Táxi",0]
[null,"Despesa","Outros Gastos",{"$f":"Analítico!$B$82","v":"Presentes"},"JANEIRO","2024-01-01",{"$f":"Analítico!C82","v":0},null,null,null,null,null,null,null,null,null,null,null,null,null,"Total Geral",0]
[null,"Despesa","Outros Gastos",{"$f":"Analítico!$B$83","v":"Roupas"},"JANEIRO","2024-01-01",{"$f":"Analítico!C83","v":0}]
[null,"Investimentos","Investimentos",{"$f":"Analítico!$B$90","v":"Previdência Privada"},"JANEIRO","2024-01-01",{"$f":"Analítico!C90","v":0}]
[null,"Investimentos","Investimentos",{"$f":"Analítico!$B$91","v":"Renda Variável"},"JANEIRO","2024-01-01",{"$f":"Analítico!C91","v":0}]
[null,"Investimentos","Investimentos",{"$f":"Analítico!$B$92","v":"Renda Fixa"},"JANEIRO","2024-01-01",{"$f":"Analítico!C92","v":0}]
[null,"Investimentos","Investimentos",{"$f":"Analítico!$B$93","v":"Tesouro Direto"},"JANEIRO","2024-01-01",{"$f":"Analítico!C93","v":0}]
[null,"Investimentos","Investimentos",{"$f":"Analítico!$B$94","v":"Fundos de Investimentos"},"JANEIRO","2024-01-01",{"$f":"Analítico!C94","v":0}]
[null,"Investimentos","Investimentos",{"$f":"Analítico!$B$95","v":"Outros"},"JANEIRO","2024-01-01",{"$f":"Analítico!C95","v":0}]
[null,"Receita","Receita",{"$f":"Analítico!$B$15","v":"Salário 1"},"FEVEREIRO","2024-02-01",{"$f":"Analítico!D15","v":0}]
[null,"Receita","Receita",{"$f":"Analítico!$B$16","v":"Salário 2"},"FEVEREIRO","2024-02-01",{"$f":"Analítico!D16","v":0}]
[null,"Receita","Receita",{"$f":"Analítico!$B$17","v":"Renda Extra (aluguel)"},"FEVEREIRO","2024-02-01",{"$f":"Analítico!D17","v":0}]
[null,"Despesa","Residência",{"$f":"Analítico!$B$23","v":"Aluguel"},"FEVEREIRO","2024-02-01",{"$f":"Analítico!D23","v":0}]
[null,"Despesa","Residência",{"$f":"Analítico!$B$24","v":"Prestação Imóvel"},"FEVEREIRO","2024-02-01",{"$f":"Analítico!D24","v":0}]
[null,"Despesa","Residência",{"$f":"Analítico!$B$25","v":"Água"},"FEVEREIRO","2024-02-01",{"$f":"Analítico!D25","v":0}]
[null,"Despesa","Residência",{"$f":"Analítico!$B$26","v":"Luz"},"FEVEREIRO","2024-02-01",{"$f":"Analítico!D26","v":0}]
[null,"Despesa","Residência",{"$f":"Analítico!$B$27","v":"Gás"},"FEVEREIRO","2024-02-01",{"$f":"Analítico!D27","v":0}]
[null,"Despesa","Residência",{"$f":"Analítico!$B$28","v":"Condomínio"},"FEVEREIRO","2024-02-01",{"$f":"Analítico!D28","v":0}]
[null,"Despesa","Residência",{"$f":"Analítico!$B$29","v":"IPTU"},"FEVEREIRO","2024-02-01",{"$f":"Analítico!D29","v":0}]
[null,"Despesa","Residência",{"$f":"Analítico!$B$30","v":"Internet"},"FEVEREIRO","2024-02-01",{"$f":"Analítico!D30","v":0}]
[null,"Despesa","Residência",{"$f":"Analítico!$B$31","v":"TV à cabo"},"FEVEREIRO","2024-02-01",{"$f":"Analítico!D31","v":0}]
[null,"Despesa","Residência",{"$f":"Analítico!$B$32","v":"Assinaturas"},"FEVEREIRO","2024-02-01",{"$f":"Analítico!D32","v":0}]
[null,"Despesa","Residência",{"$f":"Analítico!$B$33","v":"Telefone Celular 1"},"FEVEREIRO","2024-02-01",{"$f":"Analítico!D33","v":0}]
[null,"Despesa","Residência",{"$f":"Analítico!$B$34","v":"Telefone Celular 2"},"FEVEREIRO","2024-02-01",{"$f":"Analítico!D34","v":0}]
[null,"Despesa","Alimentação",{"$f":"Analítico!$B$39","v":"Supermercado"},"FEVEREIRO","2024-02-01",{"$f":"Analítico!D39","v":0}]
[null,"Despesa","Alimentação",{"$f":"Analítico!$B$40","v":"Restaurantes"},"FEVEREIRO","2024-02-01",{"$f":"Analítico!D40","v":0}]
[null,"Despesa","Alimentação",{"$f":"Analítico!$B$41","v":"Padaria"},"FEVEREIRO","2024-02-01",{"$f":"Analítico!D41","v":0}]
[null,"Despesa","Alimentação",{"$f":"Analítico!$B$42","v":"Feira"},"FEVEREIRO","2024-02-01",{"$f":"Analítico!D42","v":0}]
[null,"Despesa","Saúde",{"$f":"Analítico!$B$47","v":"Gastos Médicos"},"FEVEREIRO","2024-02-01",{"$f":"Analítico!D47","v":0}]
[null,"Despesa","Saúde",{"$f":"Analítico!$B$48","v":"Dentista"},"FEVEREIRO","2024-02-01",{"$f":"Analítico!D48","v":0}]
[null,"Despesa","Saúde",{"$f":"Analítico!$B$49","v":"Plano de Saúde"},"FEVEREIRO","2024-02-01",{"$f":"Analítico!D49","v":0}]
[null,"Despesa","Saúde",{"$f":"Analítico!$B$50","v":"Farmácia"},"FEVEREIRO","2024-02-01",{"$f":"Analítico!D50","v":0}]
[null,"Despesa","Transporte",{"$f":"Analítico!$B$55","v":"Parcela Automóvel"},"FEVEREIRO","2024-02-01",{"$f":"Analítico!D55","v":0}]
[null,"Despesa","Transporte",{"$f":"Analítico!$B$56","v":"Seguro"},"FEVEREIRO","2024-02-01",{"$f":"Analítico!D56","v":0}]
[null,"Despesa","Transporte",{"$f":"Analítico!$B$57","v":"Combustível"},"FEVEREIRO","2024-02-01",{"$f":"Analítico!D57","v":0}]
[null,"Despesa","Transporte",{"$f":"Analítico!$B$58","v":"Manuteção automóvel"},"FEVEREIRO","2024-02-01",{"$f":"Analítico!D58","v":0}]
[null,"Despesa","Transporte",{"$f":"Analítico!$B$59","v":"IPVA + Licenciamento"},"FEVEREIRO","2024-02-01",{"$f":"Analítico!D59","v":0}]
[null,"Despesa","Transporte",{"$f":"Analítico!$B$60","v":"Uber / Táxi"},"FEVEREIRO","2024-02-01",{"$f":"Analítico!D60","v":0}]
[null,"Despesa","Lazer",{"$f":"Analítico!$B$65","v":"Cinema"},"FEVEREIRO","2024-02-01",{"$f":"Analítico!D65","v":0}]
[null,"Despesa","Lazer",{"$f":"Analítico!$B$66","v":"Academia"},"FEVEREIRO","2024-02-01",{"$f":"Analítico!D66","v":0}]
[null,"Despesa","Lazer",{"$f":"Analítico!$B$67","v":"Outros"},"FEVEREIRO","2024-02-01",{"$f":"Analítico!D67","v":0}]
[null,"Despesa","Outros Gastos",{"$f":"Analítico!$B$72","v":"Associações"},"FEVEREIRO","2024-02-01",{"$f":"Analítico!D72","v":0}]
[null,"Despesa","Outros Gastos",{"$f":"Analítico!$B$73","v":"Educação"},"FEVEREIRO","2024-02-01",{"$f":"Analítico!D73","v":0}]
[null,"Despesa","Outros Gastos",{"$f":"Analítico!$B$74","v":"Educação Filhos"},"FEVEREIRO","2024-02-01",{"$f":"Analítico!D74","v":0}]
[null,"Despesa","Outros Gastos",{"$f":"Analítico!$B$75","v":"Eletrodomésticos"},"FEVEREIRO","2024-02-01",{"$f":"Analítico!D75","v":0}]
[null,"Despesa","Outros Gastos",{"$f":"Analítico!$B$76","v":"Gastos com Pet"},"FEVEREIRO","2024-02-01",{"$f":"Analítico!D76","v":0}]
[null,"Despesa","Outros Gastos",{"$f":"Analítico!$B$77","v":"Impostos"},"FEVEREIRO","2024-02-01",{"$f":"Analítico!D77","v":0}]
[null,"Despesa","Outros Gastos",{"$f":"Analítico!$B$78","v":"Manutenção"},"FEVEREIRO","2024-02-01",{"$f":"Analítico!D78","v":0}]
[null,"Despesa","Outros Gastos",{"$f":"Analítico!$B$79","v":"Material Escolar"},"FEVEREIRO","2024-02-01",{"$f":"Analítico!D79","v":0}]
[null,"Despesa","Outros Gastos",{"$f":"Analítico!$B$80","v":"Outros"},"FEVEREIRO","2024-02-01",{"$f":"Analítico!D80","v":0}]
[null,"Despesa","Outros Gastos",{"$f":"Analítico!$B$81","v":"Outros Seguros"},"FEVEREIRO","2024-02-01",{"$f":"Analítico!D81","v":0}]
[null,"Despesa","Outros Gastos",{"$f":"Analítico!$B$82","v":"Presentes"},"FEVEREIRO","2024-02-01",{"$f":"Analítico!D82","v":0}]
[null,"Despesa","Outros Gastos",{"$f":"Analítico!$B$83","v":"Roupas"},"FEVEREIRO","2024-02-01",{"$f":"Analítico!D83","v":0}]
[null,"Investimentos","Investimentos",{"$f":"Analítico!$B$90","v":"Previdência Privada"},"FEVEREIRO","2024-02-01",{"$f":"Analítico!D90","v":0}]
[null,"Investimentos","Investimentos",{"$f":"Analítico!$B$91","v":"Renda Variável"},"FEVEREIRO","2024-02-01",{"$f":"Analítico!D91","v":0}]
[null,"Investimentos","Investimentos",{"$f":"Analítico!$B$92","v":"Renda Fixa"},"FEVEREIRO","2024-02-01",{"$f":"Analítico!D92","v":0}]
[null,"Investimentos","Investimentos",{"$f":"Analítico!$B$93","v":"Tesouro Direto"},"FEVEREIRO","2024-02-01",{"$f":"Analítico!D93","v":0}]
[null,"Investimentos","Investimentos",{"$f":"Analítico!$B$94","v":"Fundos de Investimentos"},"FEVEREIRO","2024-02-01",{"$f":"Analítico!D94","v":0}]
[null,"Investimentos","Investimentos",{"$f":"Analítico!$B$95","v":"Outros"},"FEVEREIRO","2024-02-01",{"$f":"Analítico!D95","v":0}]
[null,"Receita","Receita",{"$f":"Analítico!$B$15","v":"Salário 1"},"MARÇO","2024-03-01",{"$f":"Analítico!E15","v":0}]
[null,"Receita","Receita",{"$f":"Analítico!$B$16","v":"Salário 2"},"MARÇO","2024-03-01",{"$f":"Analítico!E16","v":0}]
[null,"Receita","Receita",{"$f":"Analítico!$B$17","v":"Renda Extra (aluguel)"},"MARÇO","2024-03-01",{"$f":"Analítico!E17","v":0}]
[null,"Despesa","Residência",{"$f":"Analítico!$B$23","v":"Aluguel"},"MARÇO","2024-03-01",{"$f":"Analítico!E23","v":0}]
[null,"Despesa","Residência",{"$f":"Analítico!$B$24","v":"Prestação Imóvel"},"MARÇO","2024-03-01",{"$f":"Analítico!E24","v":0}]
[null,"Despesa","Residência",{"$f":"Analítico!$B$25","v":"Água"},"MARÇO","2024-03-01",{"$f":"Analítico!E25","v":0}]
[null,"Despesa","Residência",{"$f":"Analítico!$B$26","v":"Luz"},"MARÇO","2024-03-01",{"$f":"Analítico!E26","v":0}]
[null,"Despesa","Residência",{"$f":"Analítico!$B$27","v":"Gás"},"MARÇO","2024-03-01",{"$f":"Analítico!E27","v":0}]
[null,"Despesa","Residência",{"$f":"Analítico!$B$28","v":"Condomínio"},"MARÇO","2024-03-01",{"$f":"Analítico!E28","v":0}]
[null,"Despesa","Residência",{"$f":"Analítico!$B$29","v":"IPTU"},"MARÇO","2024-03-01",{"$f":"Analítico!E29","v":0}]
[null,"Despesa","Residência",{"$f":"Analítico!$B$30","v":"Internet"},"MARÇO","2024-03-01",{"$f":"Analítico!E30","v":0}]
[null,"Despesa","Residência",{"$f":"Analítico!$B$31","v":"TV à cabo"},"MARÇO","2024-03-01",{"$f":"Analítico!E31","v":0}]
[null,"Despesa","Residência",{"$f":"Analítico!$B$32","v":"Assinaturas"},"MARÇO","2024-03-01",{"$f":"Analítico!E32","v":0}]
[null,"Despesa","Residência",{"$f":"Analítico!$B$33","v":"Telefone Celular 1"},"MARÇO","2024-03-01",{"$f":"Analítico!E33","v":0}]
[null,"Despesa","Residência",{"$f":"Analítico!$B$34","v":"Telefone Celular 2"},"MARÇO","2024-03-01",{"$f":"Analítico!E34","v":0}]
[null,"Despesa","Alimentação",{"$f":"Analítico!$B$39","v":"Supermercado"},"MARÇO","2024-03-01",{"$f":"Analítico!E39","v":0}]
[null,"Despesa","Alimentação",{"$f":"Analítico!$B$40","v":"Restaurantes"},"MARÇO","2024-03-01",{"$f":"Analítico!E40","v":0}]
[null,"Despesa","Alimentação",{"$f":"Analítico!$B$41","v":"Padaria"},"MARÇO","2024-03-01",{"$f":"Analítico!E41","v":0}]
[null,"Despesa","Alimentação",{"$f":"Analítico!$B$42","v":"Feira"},"MARÇO","2024-03-01",{"$f":"Analítico!E42","v":0}]
[null,"Despesa","Saúde",{"$f":"Analítico!$B$47","v":"Gastos Médicos"},"MARÇO","2024-03-01",{"$f":"Analítico!E47","v":0}]
[null,"Despesa","Saúde",{"$f":"Analítico!$B$48","v":"Dentista"},"MARÇO","2024-03-01",{"$f":"Analítico!E48","v":0}]
[null,"Despesa","Saúde",{"$f":"Analítico!$B$49","v":"Plano de Saúde"},"MARÇO","2024-03-01",{"$f":"Analítico!E49","v":0}]
[null,"Despesa","Saúde",{"$f":"Analítico!$B$50","v":"Farmácia"},"MARÇO","2024-03-01",{"$f":"Analítico!E50","v":0}]
[null,"Despesa","Transporte",{"$f":"Analítico!$B$55","v":"Parcela Automóvel"},"MARÇO","2024-03-01",{"$f":"Analítico!E55","v":0}]
[null,"Despesa","Transporte",{"$f":"Analítico!$B$56","v":"Seguro"},"MARÇO","2024-03-01",{"$f":"Analítico!E56","v":0}]
[null,"Despesa","Transporte",{"$f":"Analítico!$B$57","v":"Combustível"},"MARÇO","2024-03-01",{"$f":"Analítico!E57","v":0}]
[null,"Despesa","Transporte",{"$f":"Analítico!$B$58","v":"Manuteção automóvel"},"MARÇO","2024-03-01",{"$f":"Analítico!E58","v":0}]
[null,"Despesa","Transporte",{"$f":"Analítico!$B$59","v":"IPVA + Licenciamento"},"MARÇO","2024-03-01",{"$f":"Analítico!E59","v":0}]
[null,"Despesa","Transporte",{"$f":"Analítico!$B$60","v":"Uber / Táxi"},"MARÇO","2024-03-01",{"$f":"Analítico!E60","v":0}]
[null,"Despesa","Lazer",{"$f":"Analítico!$B$65","v":"Cinema"},"MARÇO","2024-03-01",{"$f":"Analítico!E65","v":0}]
[null,"Despesa","Lazer",{"$f":"Analítico!$B$66","v":"Academia"},"MARÇO","2024-03-01",{"$f":"Analítico!E66","v":0}]
[null,"Despesa","Lazer",{"$f":"Analítico!$B$67","v":"Outros"},"MARÇO","2024-03-01",{"$f":"Analítico!E67","v":0}]
[null,"Despesa","Outros Gastos",{"$f":"Analítico!$B$72","v":"Associações"},"MARÇO","2024-03-01",{"$f":"Analítico!E72","v":0}]
[null,"Despesa","Outros Gastos",{"$f":"Analítico!$B$73","v":"Educação"},"MARÇO","2024-03-01",{"$f":"Analítico!E73","v":0}]
[null,"Despesa","Outros Gastos",{"$f":"Analítico!$B$74","v":"Educação Filhos"},"MARÇO","2024-03-01",{"$f":"Analítico!E74","v":0}]
[null,"Despesa","Outros Gastos",{"$f":"Analítico!$B$75","v":"Eletrodomésticos"},"MARÇO","2024-03-01",{"$f":"Analítico!E75","v":0}]
[null,"Despesa","Outros Gastos",{"$f":"Analítico!$B$76","v":"Gastos com Pet"},"MARÇO","2024-03-01",{"$f":"Analítico!E76","v":0}]
[null,"Despesa","Outros Gastos",{"$f":"Analítico!$B$77","v":"Impostos"},"MARÇO","2024-03-01",{"$f":"Analítico!E77","v":0}]
[null,"Despesa","Outros Gastos",{"$f":"Analítico!$B$78","v":"Manutenção"},"MARÇO","2024-03-01",{"$f":"Analítico!E78","v":0}]
[null,"Despesa","Outros Gastos",{"$f":"Analítico!$B$79","v":"Material Escolar"},"MARÇO","2024-03-01",{"$f":"Analítico!E79","v":0}]
[null,"Despesa","Outros Gastos",{"$f":"Analítico!$B$80","v":"Outros"},"MARÇO","2024-03-01",{"$f":"Analítico!E80","v":0}]
[null,"Despesa","Outros Gastos",{"$f":"Analítico!$B$81","v":"Outros Seguros"},"MARÇO","2024-03-01",{"$f":"Analítico!E81","v":0}]
[null,"Despesa","Outros Gastos",{"$f":"Analítico!$B$82","v":"Presentes"},"MARÇO","2024-03-01",{"$f":"Analítico!E82","v":0}]
[null,"Despesa","Outros Gastos",{"$f":"Analítico!$B$83","v":"Roupas"},"MARÇO","2024-03-01",{"$f":"Analítico!E83","v":0}]
[null,"Investimentos","Investimentos",{"$f":"Analítico!$B$90","v":"Previdência Privada"},"MARÇO","2024-03-01",{"$f":"Analítico!E90","v":0}]
[null,"Investimentos","Investimentos",{"$f":"Analítico!$B$91","v":"Renda Variável"},"MARÇO","2024-03-01",{"$f":"Analítico!E91","v":0}]
[null,"Investimentos","Investimentos",{"$f":"Analítico!$B$92","v":"Renda Fixa"},"MARÇO","2024-03-01",{"$f":"Analítico!E92","v":0}]
[null,"Investimentos","Investimentos",{"$f":"Analítico!$B$93","v":"Tesouro Direto"},"MARÇO","2024-03-01",{"$f":"Analítico!E93","v":0}]
[null,"Investimentos","Investimentos",{"$f":"Analítico!$B$94","v":"Fundos de Investimentos"},"MARÇO","2024-03-01",{"$f":"Analítico!E94","v":0}]
[null,"Investimentos","Investimentos",{"$f":"Analítico!$B$95","v":"Outros"},"MARÇO","2024-03-01",{"$f":"Analítico!E95","v":0}]
[null,"Receita","Receita",{"$f":"Analítico!$B$15","v":"Salário 1"},"ABRIL","2024-04-01",{"$f":"Analítico!F15","v":0}]
[null,"Receita","Receita",{"$f":"Analítico!$B$16","v":"Salário 2"},"ABRIL","2024-04-01",{"$f":"Analítico!F16","v":0}]
[null,"Receita","Receita",{"$f":"Analítico!$B$17","v":"Renda Extra (aluguel)"},"ABRIL","2024-04-01",{"$f":"Analítico!F17","v":0}]
[null,"Despesa","Residência",{"$f":"Analítico!$B$23","v":"Aluguel"},"ABRIL","2024-04-01",{"$f":"Analítico!F23","v":0}]
[null,"Despesa","Residência",{"$f":"Analítico!$B$24","v":"Prestação Imóvel"},"ABRIL","2024-04-01",{"$f":"Analítico!F24","v":0}]
[null,"Despesa","Residência",{"$f":"Analítico!$B$25","v":"Água"},"ABRIL","2024-04-01",{"$f":"Analítico!F25","v":0}]
[null,"Despesa","Residência",{"$f":"Analítico!$B$26","v":"Luz"},"ABRIL","2024-04-01",{"$f":"Analítico!F26","v":0}]
[null,"Despesa","Residência",{"$f":"Analítico!$B$27","v":"Gás"},"ABRIL","2024-04-01",{"$f":"Analítico!F27","v":0}]
[null,"Despesa","Residência",{"$f":"Analítico!$B$28","v":"Condomínio"},"ABRIL","2024-04-01",{"$f":"Analítico!F28","v":0}]
[null,"Despesa","Residência",{"$f":"Analítico!$B$29","v":"IPTU"},"ABRIL","2024-04-01",{"$f":"Analítico!F29","v":0}]
[null,"Despesa","Residência",{"$f":"Analítico!$B$30","v":"Internet"},"ABRIL","2024-04-01",{"$f":"Analítico!F30","v":0}]
[null,"Despesa","Residência",{"$f":"Analítico!$B$31","v":"TV à cabo"},"ABRIL","2024-04-01",{"$f":"Analítico!F31","v":0}]
[null,"Despesa","Residência",{"$f":"Analítico!$B$32","v":"Assinaturas"},"ABRIL","2024-04-01",{"$f":"Analítico!F32","v":0}]
[null,"Despesa","Residência",{"$f":"Analítico!$B$33","v":"Telefone Celular 1"},"ABRIL","2024-04-01",{"$f":"Analítico!F33","v":0}]
[null,"Despesa","Residência",{"$f":"Analítico!$B$34","v":"Telefone Celular 2"},"ABRIL","2024-04-01",{"$f":"Analítico!F34","v":0}]
[null,"Despesa","Alimentação",{"$f":"Analítico!$B$39","v":"Supermercado"},"ABRIL","2024-04-01",{"$f":"Analítico!F39","v":0}]
[null,"Despesa","Alimentação",{"$f":"Analítico!$B$40","v":"Restaurantes"},"ABRIL","2024-04-01",{"$f":"Analítico!F40","v":0}]
[null,"Despesa","Alimentação",{"$f":"Analítico!$B$41","v":"Padaria"},"ABRIL","2024-04-01",{"$f":"Analítico!F41","v":0}]
[null,"Despesa","Alimentação",{"$f":"Analítico!$B$42","v":"Feira"},"ABRIL","2024-04-01",{"$f":"Analítico!F42","v":0}]
[null,"Despesa","Saúde",{"$f":"Analítico!$B$47","v":"Gastos Médicos"},"ABRIL","2024-04-01",{"$f":"Analítico!F47","v":0}]
[null,"Despesa","Saúde",{"$f":"Analítico!$B$48","v":"Dentista"},"ABRIL","2024-04-01",{"$f":"Analítico!F48","v":0}]
[null,"Despesa","Saúde",{"$f":"Analítico!$B$49","v":"Plano de Saúde"},"ABRIL","2024-04-01",{"$f":"Analítico!F49","v":0}]
[null,"Despesa","Saúde",{"$f":"Analítico!$B$50","v":"Farmácia"},"ABRIL","2024-04-01",{"$f":"Analítico!F50","v":0}]
[null,"Despesa","Transporte",{"$f":"Analítico!$B$55","v":"Parcela Automóvel"},"ABRIL","2024-04-01",{"$f":"Analítico!F55","v":0}]
[null,"Despesa","Transporte",{"$f":"Analítico!$B$56","v":"Seguro"},"ABRIL","2024-04-01",{"$f":"Analítico!F56","v":0}]
[null,"Despesa","Transporte",{"$f":"Analítico!$B$57","v":"Combustível"},"ABRIL","2024-04-01",{"$f":"Analítico!F57","v":0}]
[null,"Despesa","Transporte",{"$f":"Analítico!$B$58","v":"Manuteção automóvel"},"ABRIL","2024-04-01",{"$f":"Analítico!F58","v":0}]
[null,"Despesa","Transporte",{"$f":"Analítico!$B$59","v":"IPVA + Licenciamento"},"ABRIL","2024-04-01",{"$f":"Analítico!F59","v":0}]
[null,"Despesa","Transporte",{"$f":"Analítico!$B$60","v":"Uber / Táxi"},"ABRIL","2024-04-01",{"$f":"Analítico!F60","v":0}]
[null,"Despesa","Lazer",{"$f":"Analítico!$B$65","v":"Cinema"},"ABRIL","2024-04-01",{"$f":"Analítico!F65","v":0}]
[null,"Despesa","Lazer",{"$f":"Analítico!$B$66","v":"Academia"},"ABRIL","2024-04-01",{"$f":"Analítico!F66","v":0}]
[null,"Despesa","Lazer",{"$f":"Analítico!$B$67","v":"Outros"},"ABRIL","2024-04-01",{"$f":"Analítico!F67","v":0}]
[null,"Despesa","Outros Gastos",{"$f":"Analítico!$B$72","v":"Associações"},"ABRIL","2024-04-01",{"$f":"Analítico!F72","v":0}]
[null,"Despesa","Outros Gastos",{"$f":"Analítico!$B$73","v":"Educação"},"ABRIL","2024-04-01",{"$f":"Analítico!F73","v":0}]
[null,"Despesa","Outros Gastos",{"$f":"Analítico!$B$74","v":"Educação Filhos"},"ABRIL","2024-04-01",{"$f":"Analítico!F74","v":0}]
[null,"Despesa","Outros Gastos",{"$f":"Analítico!$B$75","v":"Eletrodomésticos"},"ABRIL","2024-04-01",{"$f":"Analítico!F75","v":0}]
[null,"Despesa","Outros Gastos",{"$f":"Analítico!$B$76","v":"Gastos com Pet"},"ABRIL","2024-04-01",{"$f":"Analítico!F76","v":0}]
[null,"Despesa","Outros Gastos",{"$f":"Analítico!$B$77","v":"Impostos"},"ABRIL","2024-04-01",{"$f":"Analítico!F77","v":0}]
[null,"Despesa","Outros Gastos",{"$f":"Analítico!$B$78","v":"Manutenção"},"ABRIL","2024-04-01",{"$f":"Analítico!F78","v":0}]
[null,"Despesa","Outros Gastos",{"$f":"Analítico!$B$79","v":"Material Escolar"},"ABRIL","2024-04-01",{"$f":"Analítico!F79","v":0}]
[null,"Despesa","Outros Gastos",{"$f":"Analítico!$B$80","v":"Outros"},"ABRIL","2024-04-01",{"$f":"Analítico!F80","v":0}]
[null,"Despesa","Outros Gastos",{"$f":"Analítico!$B$81","v":"Outros Seguros"},"ABRIL","2024-04-01",{"$f":"Analítico!F81","v":0}]
[null,"Despesa","Outros Gastos",{"$f":"Analítico!$B$82","v":"Presentes"},"ABRIL","2024-04-01",{"$f":"Analítico!F82","v":0}]
[null,"Despesa","Outros Gastos",{"$f":"Analítico!$B$83","v":"Roupas"},"ABRIL","2024-04-01",{"$f":"Analítico!F83","v":0}]
[null,"Investimentos","Investimentos",{"$f":"Analítico!$B$90","v":"Previdência Privada"},"ABRIL","2024-04-01",{"$f":"Analítico!F90","v":0}]
[null,"Investimentos","Investimentos",{"$f":"Analítico!$B$91","v":"Renda Variável"},"ABRIL","2024-04-01",{"$f":"Analítico!F91","v":0}]
[null,"Investimentos","Investimentos",{"$f":"Analítico!$B$92","v":"Renda Fixa"},"ABRIL","2024-04-01",{"$f":"Analítico!F92","v":0}]
[null,"Investimentos","Investimentos",{"$f":"Analítico!$B$93","v":"Tesouro Direto"},"ABRIL","2024-04-01",{"$f":"Analítico!F93","v":0}]
[null,"Investimentos","Investimentos",{"$f":"Analítico!$B$94","v":"Fundos de Investimentos"},"ABRIL","2024-04-01",{"$f":"Analítico!F94","v":0}]
[null,"Investimentos","Investimentos",{"$f":"Analítico!$B$95","v":"Outros"},"ABRIL","2024-04-01",{"$f":"Analítico!F95","v":0}]
[null,"Receita","Receita",{"$f":"Analítico!$B$15","v":"Salário 1"},"MAIO","2024-05-01",{"$f":"Analítico!G15","v":0}]
[null,"Receita","Receita",{"$f":"Analítico!$B$16","v":"Salário 2"},"MAIO","2024-05-01",{"$f":"Analítico!G16","v":0}]
[null,"Receita","Receita",{"$f":"Analítico!$B$17","v":"Renda Extra (aluguel)"},"MAIO","2024-05-01",{"$f":"Analítico!G17","v":0}]
[null,"Despesa","Residência",{"$f":"Analítico!$B$23","v":"Aluguel"},"MAIO","2024-05-01",{"$f":"Analítico!G23","v":0}]
[null,"Despesa","Residência",{"$f":"Analítico!$B$24","v":"Prestação Imóvel"},"MAIO","2024-05-01",{"$f":"Analítico!G24","v":0}]
[null,"Despesa","Residência",{"$f":"Analítico!$B$25","v":"Água"},"MAIO","2024-05-01",{"$f":"Analítico!G25","v":0}]
[null,"Despesa","Residência",{"$f":"Analítico!$B$26","v":"Luz"},"MAIO","2024-05-01",{"$f":"Analítico!G26","v":0}]
[null,"Despesa","Residência",{"$f":"Analítico!$B$27","v":"Gás"},"MAIO","2024-05-01",{"$f":"Analítico!G27","v":0}]
[null,"Despesa","Residência",{"$f":"Analítico!$B$28","v":"Condomínio"},"MAIO","2024-05-01",{"$f":"Analítico!G28","v":0}]
[null,"Despesa","Residência",{"$f":"Analítico!$B$29","v":"IPTU"},"MAIO","2024-05-01",{"$f":"Analítico!G29","v":0}]
[null,"Despesa","Residência",{"$f":"Analítico!$B$30","v":"Internet"},"MAIO","2024-05-01",{"$f":"Analítico!G30","v":0}]
[null,"Despesa","Residência",{"$f":"Analítico!$B$31","v":"TV à cabo"},"MAIO","2024-05-01",{"$f":"Analítico!G31","v":0}]
[null,"Despesa","Residência",{"$f":"Analítico!$B$32","v":"Assinaturas"},"MAIO","2024-05-01",{"$f":"Analítico!G32","v":0}]
[null,"Despesa","Residência",{"$f":"Analítico!$B$33","v":"Telefone Celular 1"},"MAIO","2024-05-01",{"$f":"Analítico!G33","v":0}]
[null,"Despesa","Residência",{"$f":"Analítico!$B$34","v":"Telefone Celular 2"},"MAIO","2024-05-01",{"$f":"Analítico!G34","v":0}]
[null,"Despesa","Alimentação",{"$f":"Analítico!$B$39","v":"Supermercado"},"MAIO","2024-05-01",{"$f":"Analítico!G39","v":0}]
[null,"Despesa","Alimentação",{"$f":"Analítico!$B$40","v":"Restaurantes"},"MAIO","2024-05-01",{"$f":"Analítico!G40","v":0}]
[null,"Despesa","Alimentação",{"$f":"Analítico!$B$41","v":"Padaria"},"MAIO","2024-05-01",{"$f":"Analítico!G41","v":0}]
[null,"Despesa","Alimentação",{"$f":"Analítico!$B$42","v":"Feira"},"MAIO","2024-05-01",{"$f":"Analítico!G42","v":0}]
[null,"Despesa","Saúde",{"$f":"Analítico!$B$47","v":"Gastos Médicos"},"MAIO","2024-05-01",{"$f":"Analítico!G47","v":0}]
[null,"Despesa","Saúde",{"$f":"Analítico!$B$48","v":"Dentista"},"MAIO","2024-05-01",{"$f":"Analítico!G48","v":0}]
[null,"Despesa","Saúde",{"$f":"Analítico!$B$49","v":"Plano de Saúde"},"MAIO","2024-05-01",{"$f":"Analítico!G49","v":0}]
[null,"Despesa","Saúde",{"$f":"Analítico!$B$50","v":"Farmácia"},"MAIO","2024-05-01",{"$f":"Analítico!G50","v":0}]
[null,"Despesa","Transporte",{"$f":"Analítico!$B$55","v":"Parcela Automóvel"},"MAIO","2024-05-01",{"$f":"Analítico!G55","v":0}]
[null,"Despesa","Transporte",{"$f":"Analítico!$B$56","v":"Seguro"},"MAIO","2024-05-01",{"$f":"Analítico!G56","v":0}]
[null,"Despesa","Transporte",{"$f":"Analítico!$B$57","v":"Combustível"},"MAIO","2024-05-01",{"$f":"Analítico!G57","v":0}]
[null,"Despesa","Transporte",{"$f":"Analítico!$B$58","v":"Manuteção automóvel"},"MAIO","2024-05-01",{"$f":"Analítico!G58","v":0}]
[null,"Despesa","Transporte",{"$f":"Analítico!$B$59","v":"IPVA + Licenciamento"},"MAIO","2024-05-01",{"$f":"Analítico!G59","v":0}]
[null,"Despesa","Transporte",{"$f":"Analítico!$B$60","v":"Uber / Táxi"},"MAIO","2024-05-01",{"$f":"Analítico!G60","v":0}]
[null,"Despesa","Lazer",{"$f":"Analítico!$B$65","v":"Cinema"},"MAIO","2024-05-01",{"$f":"Analítico!G65","v":0}]
[null,"Despesa","Lazer",{"$f":"Analítico!$B$66","v":"Academia"},"MAIO","2024-05-01",{"$f":"Analítico!G66","v":0}]
[null,"Despesa","Lazer",{"$f":"Analítico!$B$67","v":"Outros"},"MAIO","2024-05-01",{"$f":"Analítico!G67","v":0}]
[null,"Despesa","Outros Gastos",{"$f":"Analítico!$B$72","v":"Associações"},"MAIO","2024-05-01",{"$f":"Analítico!G72","v":0}]
[null,"Despesa","Outros Gastos",{"$f":"Analítico!$B$73","v":"Educação"},"MAIO","2024-05-01",{"$f":"Analítico!G73","v":0}]
[null,"Despesa","Outros Gastos",{"$f":"Analítico!$B$74","v":"Educação Filhos"},"MAIO","2024-05-01",{"$f":"Analítico!G74","v":0}]
[null,"Despesa","Outros Gastos",{"$f":"Analítico!$B$75","v":"Eletrodomésticos"},"MAIO","2024-05-01",{"$f":"Analítico!G75","v":0}]
[null,"Despesa","Outros Gastos",{"$f":"Analítico!$B$76","v":"Gastos com Pet"},"MAIO","2024-05-01",{"$f":"Analítico!G76","v":0}]
[null,"Despesa","Outros Gastos",{"$f":"Analítico!$B$77","v":"Impostos"},"MAIO","2024-05-01",{"$f":"Analítico!G77","v":0}]
[null,"Despesa","Outros Gastos",{"$f":"Analítico!$B$78","v":"Manutenção"},"MAIO","2024-05-01",{"$f":"Analítico!G78","v":0}]
[null,"Despesa","Outros Gastos",{"$f":"Analítico!$B$79","v":"Material Escolar"},"MAIO","2024-05-01",{"$f":"Analítico!G79","v":0}]
[null,"Despesa","Outros Gastos",{"$f":"Analítico!$B$80","v":"Outros"},"MAIO","2024-05-01",{"$f":"Analítico!G80","v":0}]
[null,"Despesa","Outros Gastos",{"$f":"Analítico!$B$81","v":"Outros Seguros"},"MAIO","2024-05-01",{"$f":"Analítico!G81","v":0}]
[null,"Despesa","Outros Gastos",{"$f":"Analítico!$B$82","v":"Presentes"},"MAIO","2024-05-01",{"$f":"Analítico!G82","v":0}]
[null,"Despesa","Outros Gastos",{"$f":"Analítico!$B$83","v":"Roupas"},"MAIO","2024-05-01",{"$f":"Analítico!G83","v":0}]
[null,"Investimentos","Investimentos",{"$f":"Analítico!$B$90","v":"Previdência Privada"},"MAIO","2024-05-01",{"$f":"Analítico!G90","v":0}]
[null,"Investimentos","Investimentos",{"$f":"Analítico!$B$91","v":"Renda Variável"},"MAIO","2024-05-01",{"$f":"Analítico!G91","v":0}]
[null,"Investimentos","Investimentos",{"$f":"Analítico!$B$92","v":"Renda Fixa"},"MAIO","2024-05-01",{"$f":"Analítico!G92","v":0}]
[null,"Investimentos","Investimentos",{"$f":"Analítico!$B$93","v":"Tesouro Direto"},"MAIO","2024-05-01",{"$f":"Analítico!G93","v":0}]
[null,"Investimentos","Investimentos",{"$f":"Analítico!$B$94","v":"Fundos de Investimentos"},"MAIO","2024-05-01",{"$f":"Analítico!G94","v":0}]
[null,"Investimentos","Investimentos",{"$f":"Analítico!$B$95","v":"Outros"},"MAIO","2024-05-01",{"$f":"Analítico!G95","v":0}]
[null,"Receita","Receita",{"$f":"Analítico!$B$15","v":"Salário 1"},"JUNHO","2024-06-01",{"$f":"Analítico!H15","v":0}]
[null,"Receita","Receita",{"$f":"Analítico!$B$16","v":"Salário 2"},"JUNHO","2024-06-01",{"$f":"Analítico!H16","v":0}]
[null,"Receita","Receita",{"$f":"Analítico!$B$17","v":"Renda Extra (aluguel)"},"JUNHO","2024-06-01",{"$f":"Analítico!H17","v":0}]
[null,"Despesa","Residência",{"$f":"Analítico!$B$23","v":"Aluguel"},"JUNHO","2024-06-01",{"$f":"Analítico!H23","v":0}]
[null,"Despesa","Residência",{"$f":"Analítico!$B$24","v":"Prestação Imóvel"},"JUNHO","2024-06-01",{"$f":"Analítico!H24","v":0}]
[null,"Despesa","Residência",{"$f":"Analítico!$B$25","v":"Água"},"JUNHO","2024-06-01",{"$f":"Analítico!H25","v":0}]
[null,"Despesa","Residência",{"$f":"Analítico!$B$26","v":"Luz"},"JUNHO","2024-06-01",{"$f":"Analítico!H26","v":0}]
[null,"Despesa","Residência",{"$f":"Analítico!$B$27","v":"Gás"},"JUNHO","2024-06-01",{"$f":"Analítico!H27","v":0}]
[null,"Despesa","Residência",{"$f":"Analítico!$B$28","v":"Condomínio"},"JUNHO","2024-06-01",{"$f":"Analítico!H28","v":0}]
[null,"Despesa","Residência",{"$f":"Analítico!$B$29","v":"IPTU"},"JUNHO","2024-06-01",{"$f":"Analítico!H29","v":0}]
[null,"Despesa","Residência",{"$f":"Analítico!$B$30","v":"Internet"},"JUNHO","2024-06-01",{"$f":"Analítico!H30","v":0}]
[null,"Despesa","Residência",{"$f":"Analítico!$B$31","v":"TV à cabo"},"JUNHO","2024-06-01",{"$f":"Analítico!H31","v":0}]
[null,"Despesa","Residência",{"$f":"Analítico!$B$32","v":"Assinaturas"},"JUNHO","2024-06-01",{"$f":"Analítico!H32","v":0}]
[null,"Despesa","Residência",{"$f":"Analítico!$B$33","v":"Telefone Celular 1"},"JUNHO","2024-06-01",{"$f":"Analítico!H33","v":0}]
[null,"Despesa","Residência",{"$f":"Analítico!$B$34","v":"Telefone Celular 2"},"JUNHO","2024-06-01",{"$f":"Analítico!H34","v":0}]
[null,"Despesa","Alimentação",{"$f":"Analítico!$B$39","v":"Supermercado"},"JUNHO","2024-06-01",{"$f":"Analítico!H39","v":0}]
[null,"Despesa","Alimentação",{"$f":"Analítico!$B$40","v":"Restaurantes"},"JUNHO","2024-06-01",{"$f":"Analítico!H40","v":0}]
[null,"Despesa","Alimentação",{"$f":"Analítico!$B$41","v":"Padaria"},"JUNHO","2024-06-01",{"$f":"Analítico!H41","v":0}]
[null,"Despesa","Alimentação",{"$f":"Analítico!$B$42","v":"Feira"},"JUNHO","2024-06-01",{"$f":"Analítico!H42","v":0}]
[null,"Despesa","Saúde",{"$f":"Analítico!$B$47","v":"Gastos Médicos"},"JUNHO","2024-06-01",{"$f":"Analítico!H47","v":0}]
[null,"Despesa","Saúde",{"$f":"Analítico!$B$48","v":"Dentista"},"JUNHO","2024-06-01",{"$f":"Analítico!H48","v":0}]
[null,"Despesa","Saúde",{"$f":"Analítico!$B$49","v":"Plano de Saúde"},"JUNHO","2024-06-01",{"$f":"Analítico!H49","v":0}]
[null,"Despesa","Saúde",{"$f":"Analítico!$B$50","v":"Farmácia"},"JUNHO","2024-06-01",{"$f":"Analítico!H50","v":0}]
[null,"Despesa","Transporte",{"$f":"Analítico!$B$55","v":"Parcela Automóvel"},"JUNHO","2024-06-01",{"$f":"Analítico!H55","v":0}]
[null,"Despesa","Transporte",{"$f":"Analítico!$B$56","v":"Seguro"},"JUNHO","2024-06-01",{"$f":"Analítico!H56","v":0}]
[null,"Despesa","Transporte",{"$f":"Analítico!$B$57","v":"Combustível"},"JUNHO","2024-06-01",{"$f":"Analítico!H57","v":0}]
[null,"Despesa","Transporte",{"$f":"Analítico!$B$58","v":"Manuteção automóvel"},"JUNHO","2024-06-01",{"$f":"Analítico!H58","v":0}]
[null,"Despesa","Transporte",{"$f":"Analítico!$B$59","v":"IPVA + Licenciamento"},"JUNHO","2024-06-01",{"$f":"Analítico!H59","v":0}]
[null,"Despesa","Transporte",{"$f":"Analítico!$B$60","v":"Uber / Táxi"},"JUNHO","2024-06-01",{"$f":"Analítico!H60","v":0}]
[null,"Despesa","Lazer",{"$f":"Analítico!$B$65","v":"Cinema"},"JUNHO","2024-06-01",{"$f":"Analítico!H65","v":0}]
[null,"Despesa","Lazer",{"$f":"Analítico!$B$66","v":"Academia"},"JUNHO","2024-06-01",{"$f":"Analítico!H66","v":0}]
[null,"Despesa","Lazer",{"$f":"Analítico!$B$67","v":"Outros"},"JUNHO","2024-06-01",{"$f":"Analítico!H67","v":0}]
[null,"Despesa","Outros Gastos",{"$f":"Analítico!$B$72","v":"Associações"},"JUNHO","2024-06-01",{"$f":"Analítico!H72","v":0}]
[null,"Despesa","Outros Gastos",{"$f":"Analítico!$B$73","v":"Educação"},"JUNHO","2024-06-01",{"$f":"Analítico!H73","v":0}]
[null,"Despesa","Outros Gastos",{"$f":"Analítico!$B$74","v":"Educação Filhos"},"JUNHO","2024-06-01",{"$f":"Analítico!H74","v":0}]
[null,"Despesa","Outros Gastos",{"$f":"Analítico!$B$75","v":"Eletrodomésticos"},"JUNHO","2024-06-01",{"$f":"Analítico!H75","v":0}]
[null,"Despesa","Outros Gastos",{"$f":"Analítico!$B$76","v":"Gastos com Pet"},"JUNHO","2024-06-01",{"$f":"Analítico!H76","v":0}]
[null,"Despesa","Outros Gastos",{"$f":"Analítico!$B$77","v":"Impostos"},"JUNHO","2024-06-01",{"$f":"Analítico!H77","v":0}]
[null,"Despesa","Outros Gastos",{"$f":"Analítico!$B$78","v":"Manutenção"},"JUNHO","2024-06-01",{"$f":"Analítico!H78","v":0}]
[null,"Despesa","Outros Gastos",{"$f":"Analítico!$B$79","v":"Material Escolar"},"JUNHO","2024-06-01",{"$f":"Analítico!H79","v":0}]
[null,"Despesa","Outros Gastos",{"$f":"Analítico!$B$80","v":"Outros"},"JUNHO","2024-06-01",{"$f":"Analítico!H80","v":0}]
[null,"Despesa","Outros Gastos",{"$f":"Analítico!$B$81","v":"Outros Seguros"},"JUNHO","2024-06-01",{"$f":"Analítico!H81","v":0}]
[null,"Despesa","Outros Gastos",{"$f":"Analítico!$B$82","v":"Presentes"},"JUNHO","2024-06-01",{"$f":"Analítico!H82","v":0}]
[null,"Despesa","Outros Gastos",{"$f":"Analítico!$B$83","v":"Roupas"},"JUNHO","2024-06-01",{"$f":"Analítico!H83","v":0}]
[null,"Investimentos","Investimentos",{"$f":"Analítico!$B$90","v":"Previdência Privada"},"JUNHO","2024-06-01",{"$f":"Analítico!H90","v":0}]
[null,"Investimentos","Investimentos",{"$f":"Analítico!$B$91","v":"Renda Variável"},"JUNHO","2024-06-01",{"$f":"Analítico!H91","v":0}]
[null,"Investimentos","Investimentos",{"$f":"Analítico!$B$92","v":"Renda Fixa"},"JUNHO","2024-06-01",{"$f":"Analítico!H92","v":0}]
[null,"Investimentos","Investimentos",{"$f":"Analítico!$B$93","v":"Tesouro Direto"},"JUNHO","2024-06-01",{"$f":"Analítico!H93","v":0}]
[null,"Investimentos","Investimentos",{"$f":"Analítico!$B$94","v":"Fundos de Investimentos"},"JUNHO","2024-06-01",{"$f":"Analítico!H94","v":0}]
[null,"Investimentos","Investimentos",{"$f":"Analítico!$B$95","v":"Outros"},"JUNHO","2024-06-01",{"$f":"Analítico!H95","v":0}]
[null,"Receita","Receita",{"$f":"Analítico!$B$15","v":"Salário 1"},"JULHO","2024-07-01",{"$f":"Analítico!I15","v":0}]
[null,"Receita","Receita",{"$f":"Analítico!$B$16","v":"Salário 2"},"JULHO","2024-07-01",{"$f":"Analítico!I16","v":0}]
[null,"Receita","Receita",{"$f":"Analítico!$B$17","v":"Renda Extra (aluguel)"},"JULHO","2024-07-01",{"$f":"Analítico!I17","v":0}]
[null,"Despesa","Residência",{"$f":"Analítico!$B$23","v":"Aluguel"},"JULHO","2024-07-01",{"$f":"Analítico!I23","v":0}]
[null,"Despesa","Residência",{"$f":"Analítico!$B$24","v":"Prestação Imóvel"},"JULHO","2024-07-01",{"$f":"Analítico!I24","v":0}]
[null,"Despesa","Residência",{"$f":"Analítico!$B$25","v":"Água"},"JULHO","2024-07-01",{"$f":"Analítico!I25","v":0}]
[null,"Despesa","Residência",{"$f":"Analítico!$B$26","v":"Luz"},"JULHO","2024-07-01",{"$f":"Analítico!I26","v":0}]
[null,"Despesa","Residência",{"$f":"Analítico!$B$27","v":"Gás"},"JULHO","2024-07-01",{"$f":"Analítico!I27","v":0}]
[null,"Despesa","Residência",{"$f":"Analítico!$B$28","v":"Condomínio"},"JULHO","2024-07-01",{"$f":"Analítico!I28","v":0}]
[null,"Despesa","Residência",{"$f":"Analítico!$B$29","v":"IPTU"},"JULHO","2024-07-01",{"$f":"Analítico!I29","v":0}]
[null,"Despesa","Residência",{"$f":"Analítico!$B$30","v":"Internet"},"JULHO","2024-07-01",{"$f":"Analítico!I30","v":0}]
[null,"Despesa","Residência",{"$f":"Analítico!$B$31","v":"TV à cabo"},"JULHO","2024-07-01",{"$f":"Analítico!I31","v":0}]
[null,"Despesa","Residência",{"$f":"Analítico!$B$32","v":"Assinaturas"},"JULHO","2024-07-01",{"$f":"Analítico!I32","v":0}]
[null,"Despesa","Residência",{"$f":"Analítico!$B$33","v":"Telefone Celular 1"},"JULHO","2024-07-01",{"$f":"Analítico!I33","v":0}]
[null,"Despesa","Residência",{"$f":"Analítico!$B$34","v":"Telefone Celular 2"},"JULHO","2024-07-01",{"$f":"Analítico!I34","v":0}]
[null,"Despesa","Alimentação",{"$f":"Analítico!$B$39","v":"Supermercado"},"JULHO","2024-07-01",{"$f":"Analítico!I39","v":0}]
[null,"Despesa","Alimentação",{"$f":"Analítico!$B$40","v":"Restaurantes"},"JULHO","2024-07-01",{"$f":"Analítico!I40","v":0}]
[null,"Despesa","Alimentação",{"$f":"Analítico!$B$41","v":"Padaria"},"JULHO","2024-07-01",{"$f":"Analítico!I41","v":0}]
[null,"Despesa","Alimentação",{"$f":"Analítico!$B$42","v":"Feira"},"JULHO","2024-07-01",{"$f":"Analítico!I42","v":0}]
[null,"Despesa","Saúde",{"$f":"Analítico!$B$47","v":"Gastos Médicos"},"JULHO","2024-07-01",{"$f":"Analítico!I47","v":0}]
[null,"Despesa","Saúde",{"$f":"Analítico!$B$48","v":"Dentista"},"JULHO","2024-07-01",{"$f":"Analítico!I48","v":0}]
[null,"Despesa","Saúde",{"$f":"Analítico!$B$49","v":"Plano de Saúde"},"JULHO","2024-07-01",{"$f":"Analítico!I49","v":0}]
[null,"Despesa","Saúde",{"$f":"Analítico!$B$50","v":"Farmácia"},"JULHO","2024-07-01",{"$f":"Analítico!I50","v":0}]
[null,"Despesa","Transporte",{"$f":"Analítico!$B$55","v":"Parcela Automóvel"},"JULHO","2024-07-01",{"$f":"Analítico!I55","v":0}]
[null,"Despesa","Transporte",{"$f":"Analítico!$B$56","v":"Seguro"},"JULHO","2024-07-01",{"$f":"Analítico!I56","v":0}]
[null,"Despesa","Transporte",{"$f":"Analítico!$B$57","v":"Combustível"},"JULHO","2024-07-01",{"$f":"Analítico!I57","v":0}]
[null,"Despesa","Transporte",{"$f":"Analítico!$B$58","v":"Manuteção automóvel"},"JULHO","2024-07-01",{"$f":"Analítico!I58","v":0}]
[null,"Despesa","Transporte",{"$f":"Analítico!$B$59","v":"IPVA + Licenciamento"},"JULHO","2024-07-01",{"$f":"Analítico!I59","v":0}]
[null,"Despesa","Transporte",{"$f":"Analítico!$B$60","v":"Uber / Táxi"},"JULHO","2024-07-01",{"$f":"Analítico!I60","v":0}]
[null,"Despesa","Lazer",{"$f":"Analítico!$B$65","v":"Cinema"},"JULHO","2024-07-01",{"$f":"Analítico!I65","v":0}]
[null,"Despesa","Lazer",{"$f":"Analítico!$B$66","v":"Academia"},"JULHO","2024-07-01",{"$f":"Analítico!I66","v":0}]
[null,"Despesa","Lazer",{"$f":"Analítico!$B$67","v":"Outros"},"JULHO","2024-07-01",{"$f":"Analítico!I67","v":0}]
[null,"Despesa","Outros Gastos",{"$f":"Analítico!$B$72","v":"Associações"},"JULHO","2024-07-01",{"$f":"Analítico!I72","v":0}]
[null,"Despesa","Outros Gastos",{"$f":"Analítico!$B$73","v":"Educação"},"JULHO","2024-07-01",{"$f":"Analítico!I73","v":0}]
[null,"Despesa","Outros Gastos",{"$f":"Analítico!$B$74","v":"Educação Filhos"},"JULHO","2024-07-01",{"$f":"Analítico!I74","v":0}]
[null,"Despesa","Outros Gastos",{"$f":"Analítico!$B$75","v":"Eletrodomésticos"},"JULHO","2024-07-01",{"$f":"Analítico!I75","v":0}]
[null,"Despesa","Outros Gastos",{"$f":"Analítico!$B$76","v":"Gastos com Pet"},"JULHO","2024-07-01",{"$f":"Analítico!I76","v":0}]
[null,"Despesa","Outros Gastos",{"$f":"Analítico!$B$77","v":"Impostos"},"JULHO","2024-07-01",{"$f":"Analítico!I77","v":0}]
[null,"Despesa","Outros Gastos",{"$f":"Analítico!$B$78","v":"Manutenção"},"JULHO","2024-07-01",{"$f":"Analítico!I78","v":0}]
[null,"Despesa","Outros Gastos",{"$f":"Analítico!$B$79","v":"Material Escolar"},"JULHO","2024-07-01",{"$f":"Analítico!I79","v":0}]
[null,"Despesa","Outros Gastos",{"$f":"Analítico!$B$80","v":"Outros"},"JULHO","2024-07-01",{"$f":"Analítico!I80","v":0}]
[null,"Despesa","Outros Gastos",{"$f":"Analítico!$B$81","v":"Outros Seguros"},"JULHO","2024-07-01",{"$f":"Analítico!I81","v":0}]
[null,"Despesa","Outros Gastos",{"$f":"Analítico!$B$82","v":"Presentes"},"JULHO","2024-07-01",{"$f":"Analítico!I82","v":0}]
[null,"Despesa","Outros Gastos",{"$f":"Analítico!$B$83","v":"Roupas"},"JULHO","2024-07-01",{"$f":"Analítico!I83","v":0}]
[null,"Investimentos","Investimentos",{"$f":"Analítico!$B$90","v":"Previdência Privada"},"JULHO","2024-07-01",{"$f":"Analítico!I90","v":0}]
[null,"Investimentos","Investimentos",{"$f":"Analítico!$B$91","v":"Renda Variável"},"JULHO","2024-07-01",{"$f":"Analítico!I91","v":0}]
[null,"Investimentos","Investimentos",{"$f":"Analítico!$B$92","v":"Renda Fixa"},"JULHO","2024-07-01",{"$f":"Analítico!I92","v":0}]
[null,"Investimentos","Investimentos",{"$f":"Analítico!$B$93","v":"Tesouro Direto"},"JULHO","2024-07-01",{"$f":"Analítico!I93","v":0}]
[null,"Investimentos","Investimentos",{"$f":"Analítico!$B$94","v":"Fundos de Investimentos"},"JULHO","2024-07-01",{"$f":"Analítico!I94","v":0}]
[null,"Investimentos","Investimentos",{"$f":"Analítico!$B$95","v":"Outros"},"JULHO","2024-07-01",{"$f":"Analítico!I95","v":0}]
[null,"Receita","Receita",{"$f":"Analítico!$B$15","v":"Salário 1"},"AGOSTO","2024-08-01",{"$f":"Analítico!J15","v":0}]
[null,"Receita","Receita",{"$f":"Analítico!$B$16","v":"Salário 2"},"AGOSTO","2024-08-01",{"$f":"Analítico!J16","v":0}]
[null,"Receita","Receita",{"$f":"Analítico!$B$17","v":"Renda Extra (aluguel)"},"AGOSTO","2024-08-01",{"$f":"Analítico!J17","v":0}]
[null,"Despesa","Residência",{"$f":"Analítico!$B$23","v":"Aluguel"},"AGOSTO","2024-08-01",{"$f":"Analítico!J23","v":0}]
[null,"Despesa","Residência",{"$f":"Analítico!$B$24","v":"Prestação Imóvel"},"AGOSTO","2024-08-01",{"$f":"Analítico!J24","v":0}]
[null,"Despesa","Residência",{"$f":"Analítico!$B$25","v":"Água"},"AGOSTO","2024-08-01",{"$f":"Analítico!J25","v":0}]
[null,"Despesa","Residência",{"$f":"Analítico!$B$26","v":"Luz"},"AGOSTO","2024-08-01",{"$f":"Analítico!J26","v":0}]
[null,"Despesa","Residência",{"$f":"Analítico!$B$27","v":"Gás"},"AGOSTO","2024-08-01",{"$f":"Analítico!J27","v":0}]
[null,"Despesa","Residência",{"$f":"Analítico!$B$28","v":"Condomínio"},"AGOSTO","2024-08-01",{"$f":"Analítico!J28","v":0}]
[null,"Despesa","Residência",{"$f":"Analítico!$B$29","v":"IPTU"},"AGOSTO","2024-08-01",{"$f":"Analítico!J29","v":0}]
[null,"Despesa","Residência",{"$f":"Analítico!$B$30","v":"Internet"},"AGOSTO","2024-08-01",{"$f":"Analítico!J30","v":0}]
[null,"Despesa","Residência",{"$f":"Analítico!$B$31","v":"TV à cabo"},"AGOSTO","2024-08-01",{"$f":"Analítico!J31","v":0}]
[null,"Despesa","Residência",{"$f":"Analítico!$B$32","v":"Assinaturas"},"AGOSTO","2024-08-01",{"$f":"Analítico!J32","v":0}]
[null,"Despesa","Residência",{"$f":"Analítico!$B$33","v":"Telefone Celular 1"},"AGOSTO","2024-08-01",{"$f":"Analítico!J33","v":0}]
[null,"Despesa","Residência",{"$f":"Analítico!$B$34","v":"Telefone Celular 2"},"AGOSTO","2024-08-01",{"$f":"Analítico!J34","v":0}]
[null,"Despesa","Alimentação",{"$f":"Analítico!$B$39","v":"Supermercado"},"AGOSTO","2024-08-01",{"$f":"Analítico!J39","v":0}]
[null,"Despesa","Alimentação",{"$f":"Analítico!$B$40","v":"Restaurantes"},"AGOSTO","2024-08-01",{"$f":"Analítico!J40","v":0}]
[null,"Despesa","Alimentação",{"$f":"Analítico!$B$41","v":"Padaria"},"AGOSTO","2024-08-01",{"$f":"Analítico!J41","v":0}]
[null,"Despesa","Alimentação",{"$f":"Analítico!$B$42","v":"Feira"},"AGOSTO","2024-08-01",{"$f":"Analítico!J42","v":0}]
[null,"Despesa","Saúde",{"$f":"Analítico!$B$47","v":"Gastos Médicos"},"AGOSTO","2024-08-01",{"$f":"Analítico!J47","v":0}]
[null,"Despesa","Saúde",{"$f":"Analítico!$B$48","v":"Dentista"},"AGOSTO","2024-08-01",{"$f":"Analítico!J48","v":0}]
[null,"Despesa","Saúde",{"$f":"Analítico!$B$49","v":"Plano de Saúde"},"AGOSTO","2024-08-01",{"$f":"Analítico!J49","v":0}]
[null,"Despesa","Saúde",{"$f":"Analítico!$B$50","v":"Farmácia"},"AGOSTO","2024-08-01",{"$f":"Analítico!J50","v":0}]
[null,"Despesa","Transporte",{"$f":"Analítico!$B$55","v":"Parcela Automóvel"},"AGOSTO","2024-08-01",{"$f":"Analítico!J55","v":0}]
[null,"Despesa","Transporte",{"$f":"Analítico!$B$56","v":"Seguro"},"AGOSTO","2024-08-01",{"$f":"Analítico!J56","v":0}]
[null,"Despesa","Transporte",{"$f":"Analítico!$B$57","v":"Combustível"},"AGOSTO","2024-08-01",{"$f":"Analítico!J57","v":0}]
[null,"Despesa","Transporte",{"$f":"Analítico!$B$58","v":"Manuteção automóvel"},"AGOSTO","2024-08-01",{"$f":"Analítico!J58","v":0}]
[null,"Despesa","Transporte",{"$f":"Analítico!$B$59","v":"IPVA + Licenciamento"},"AGOSTO","2024-08-01",{"$f":"Analítico!J59","v":0}]
[null,"Despesa","Transporte",{"$f":"Analítico!$B$60","v":"Uber / Táxi"},"AGOSTO","2024-08-01",{"$f":"Analítico!J60","v":0}]
[null,"Despesa","Lazer",{"$f":"Analítico!$B$65","v":"Cinema"},"AGOSTO","2024-08-01",{"$f":"Analítico!J65","v":0}]
[null,"Despesa","Lazer",{"$f":"Analítico!$B$66","v":"Academia"},"AGOSTO","2024-08-01",{"$f":"Analítico!J66","v":0}]
[null,"Despesa","Lazer",{"$f":"Analítico!$B$67","v":"Outros"},"AGOSTO","2024-08-01",{"$f":"Analítico!J67","v":0}]
[null,"Despesa","Outros Gastos",{"$f":"Analítico!$B$72","v":"Associações"},"AGOSTO","2024-08-01",{"$f":"Analítico!J72","v":0}]
[null,"Despesa","Outros Gastos",{"$f":"Analítico!$B$73","v":"Educação"},"AGOSTO","2024-08-01",{"$f":"Analítico!J73","v":0}]
[null,"Despesa","Outros Gastos",{"$f":"Analítico!$B$74","v":"Educação Filhos"},"AGOSTO","2024-08-01",{"$f":"Analítico!J74","v":0}]
[null,"Despesa","Outros Gastos",{"$f":"Analítico!$B$75","v":"Eletrodomésticos"},"AGOSTO","2024-08-01",{"$f":"Analítico!J75","v":0}]
[null,"Despesa","Outros Gastos",{"$f":"Analítico!$B$76","v":"Gastos com Pet"},"AGOSTO","2024-08-01",{"$f":"Analítico!J76","v":0}]
[null,"Despesa","Outros Gastos",{"$f":"Analítico!$B$77","v":"Impostos"},"AGOSTO","2024-08-01",{"$f":"Analítico!J77","v":0}]
[null,"Despesa","Outros Gastos",{"$f":"Analítico!$B$78","v":"Manutenção"},"AGOSTO","2024-08-01",{"$f":"Analítico!J78","v":0}]
[null,"Despesa","Outros Gastos",{"$f":"Analítico!$B$79","v":"Material Escolar"},"AGOSTO","2024-08-01",{"$f":"Analítico!J79","v":0}]
[null,"Despesa","Outros Gastos",{"$f":"Analítico!$B$80","v":"Outros"},"AGOSTO","2024-08-01",{"$f":"Analítico!J80","v":0}]
[null,"Despesa","Outros Gastos",{"$f":"Analítico!$B$81","v":"Outros Seguros"},"AGOSTO","2024-08-01",{"$f":"Analítico!J81","v":0}]
[null,"Despesa","Outros Gastos",{"$f":"Analítico!$B$82","v":"Presentes"},"AGOSTO","2024-08-01",{"$f":"Analítico!J82","v":0}]
[null,"Despesa","Outros Gastos",{"$f":"Analítico!$B$83","v":"Roupas"},"AGOSTO","2024-08-01",{"$f":"Analítico!J83","v":0}]
[null,"Investimentos","Investimentos",{"$f":"Analítico!$B$90","v":"Previdência Privada"},"AGOSTO","2024-08-01",{"$f":"Analítico!J90","v":0}]
[null,"Investimentos","Investimentos",{"$f":"Analítico!$B$91","v":"Renda Variável"},"AGOSTO","2024-08-01",{"$f":"Analítico!J91","v":0}]
[null,"Investimentos","Investimentos",{"$f":"Analítico!$B$92","v":"Renda Fixa"},"AGOSTO","2024-08-01",{"$f":"Analítico!J92","v":0}]
[null,"Investimentos","Investimentos",{"$f":"Analítico!$B$93","v":"Tesouro Direto"},"AGOSTO","2024-08-01",{"$f":"Analítico!J93","v":0}]
[null,"Investimentos","Investimentos",{"$f":"Analítico!$B$94","v":"Fundos de Investimentos"},"AGOSTO","2024-08-01",{"$f":"Analítico!J94","v":0}]
[null,"Investimentos","Investimentos",{"$f":"Analítico!$B$95","v":"Outros"},"AGOSTO","2024-08-01",{"$f":"Analítico!J95","v":0}]
[null,"Receita","Receita",{"$f":"Analítico!$B$15","v":"Salário 1"},"SETEMBRO","2024-09-01",{"$f":"Analítico!K15","v":0}]
[null,"Receita","Receita",{"$f":"Analítico!$B$16","v":"Salário 2"},"SETEMBRO","2024-09-01",{"$f":"Analítico!K16","v":0}]
[null,"Receita","Receita",{"$f":"Analítico!$B$17","v":"Renda Extra (aluguel)"},"SETEMBRO","2024-09-01",{"$f":"Analítico!K17","v":0}]
[null,"Despesa","Residência",{"$f":"Analítico!$B$23","v":"Aluguel"},"SETEMBRO","2024-09-01",{"$f":"Analítico!K23","v":0}]
[null,"Despesa","Residência",{"$f":"Analítico!$B$24","v":"Prestação Imóvel"},"SETEMBRO","2024-09-01",{"$f":"Analítico!K24","v":0}]
[null,"Despesa","Residência",{"$f":"Analítico!$B$25","v":"Água"},"SETEMBRO","2024-09-01",{"$f":"Analítico!K25","v":0}]
[null,"Despesa","Residência",{"$f":"Analítico!$B$26","v":"Luz"},"SETEMBRO","2024-09-01",{"$f":"Analítico!K26","v":0}]
[null,"Despesa","Residência",{"$f":"Analítico!$B$27","v":"Gás"},"SETEMBRO","2024-09-01",{"$f":"Analítico!K27","v":0}]
[null,"Despesa","Residência",{"$f":"Analítico!$B$28","v":"Condomínio"},"SETEMBRO","2024-09-01",{"$f":"Analítico!K28","v":0}]
[null,"Despesa","Residência",{"$f":"Analítico!$B$29","v":"IPTU"},"SETEMBRO","2024-09-01",{"$f":"Analítico!K29","v":0}]
[null,"Despesa","Residência",{"$f":"Analítico!$B$30","v":"Internet"},"SETEMBRO","2024-09-01",{"$f":"Analítico!K30","v":0}]
[null,"Despesa","Residência",{"$f":"Analítico!$B$31","v":"TV à cabo"},"SETEMBRO","2024-09-01",{"$f":"Analítico!K31","v":0}]
[null,"Despesa","Residência",{"$f":"Analítico!$B$32","v":"Assinaturas"},"SETEMBRO","2024-09-01",{"$f":"Analítico!K32","v":0}]
[null,"Despesa","Residência",{"$f":"Analítico!$B$33","v":"Telefone Celular 1"},"SETEMBRO","2024-09-01",{"$f":"Analítico!K33","v":0}]
[null,"Despesa","Residência",{"$f":"Analítico!$B$34","v":"Telefone Celular 2"},"SETEMBRO","2024-09-01",{"$f":"Analítico!K34","v":0}]
[null,"Despesa","Alimentação",{"$f":"Analítico!$B$39","v":"Supermercado"},"SETEMBRO","2024-09-01",{"$f":"Analítico!K39","v":0}]
[null,"Despesa","Alimentação",{"$f":"Analítico!$B$40","v":"Restaurantes"},"SETEMBRO","2024-09-01",{"$f":"Analítico!K40","v":0}]
[null,"Despesa","Alimentação",{"$f":"Analítico!$B$41","v":"Padaria"},"SETEMBRO","2024-09-01",{"$f":"Analítico!K41","v":0}]
[null,"Despesa","Alimentação",{"$f":"Analítico!$B$42","v":"Feira"},"SETEMBRO","2024-09-01",{"$f":"Analítico!K42","v":0}]
[null,"Despesa","Saúde",{"$f":"Analítico!$B$47","v":"Gastos Médicos"},"SETEMBRO","2024-09-01",{"$f":"Analítico!K47","v":0}]
[null,"Despesa","Saúde",{"$f":"Analítico!$B$48","v":"Dentista"},"SETEMBRO","2024-09-01",{"$f":"Analítico!K48","v":0}]
[null,"Despesa","Saúde",{"$f":"Analítico!$B$49","v":"Plano de Saúde"},"SETEMBRO","2024-09-01",{"$f":"Analítico!K49","v":0}]
[null,"Despesa","Saúde",{"$f":"Analítico!$B$50","v":"Farmácia"},"SETEMBRO","2024-09-01",{"$f":"Analítico!K50","v":0}]
[null,"Despesa","Transporte",{"$f":"Analítico!$B$55","v":"Parcela Automóvel"},"SETEMBRO","2024-09-01",{"$f":"Analítico!K55","v":0}]
[null,"Despesa","Transporte",{"$f":"Analítico!$B$56","v":"Seguro"},"SETEMBRO","2024-09-01",{"$f":"Analítico!K56","v":0}]
[null,"Despesa","Transporte",{"$f":"Analítico!$B$57","v":"Combustível"},"SETEMBRO","2024-09-01",{"$f":"Analítico!K57","v":0}]
[null,"Despesa","Transporte",{"$f":"Analítico!$B$58","v":"Manuteção automóvel"},"SETEMBRO","2024-09-01",{"$f":"Analítico!K58","v":0}]
[null,"Despesa","Transporte",{"$f":"Analítico!$B$59","v":"IPVA + Licenciamento"},"SETEMBRO","2024-09-01",{"$f":"Analítico!K59","v":0}]
[null,"Despesa","Transporte",{"$f":"Analítico!$B$60","v":"Uber / Táxi"},"SETEMBRO","2024-09-01",{"$f":"Analítico!K60","v":0}]
[null,"Despesa","Lazer",{"$f":"Analítico!$B$65","v":"Cinema"},"SETEMBRO","2024-09-01",{"$f":"Analítico!K65","v":0}]
[null,"Despesa","Lazer",{"$f":"Analítico!$B$66","v":"Academia"},"SETEMBRO","2024-09-01",{"$f":"Analítico!K66","v":0}]
[null,"Despesa","Lazer",{"$f":"Analítico!$B$67","v":"Outros"},"SETEMBRO","2024-09-01",{"$f":"Analítico!K67","v":0}]
[null,"Despesa","Outros Gastos",{"$f":"Analítico!$B$72","v":"Associações"},"SETEMBRO","2024-09-01",{"$f":"Analítico!K72","v":0}]
[null,"Despesa","Outros Gastos",{"$f":"Analítico!$B$73","v":"Educação"},"SETEMBRO","2024-09-01",{"$f":"Analítico!K73","v":0}]
[null,"Despesa","Outros Gastos",{"$f":"Analítico!$B$74","v":"Educação Filhos"},"SETEMBRO","2024-09-01",{"$f":"Analítico!K74","v":0}]
[null,"Despesa","Outros Gastos",{"$f":"Analítico!$B$75","v":"Eletrodomésticos"},"SETEMBRO","2024-09-01",{"$f":"Analítico!K75","v":0}]
[null,"Despesa","Outros Gastos",{"$f":"Analítico!$B$76","v":"Gastos com Pet"},"SETEMBRO","2024-09-01",{"$f":"Analítico!K76","v":0}]
[null,"Despesa","Outros Gastos",{"$f":"Analítico!$B$77","v":"Impostos"},"SETEMBRO","2024-09-01",{"$f":"Analítico!K77","v":0}]
[null,"Despesa","Outros Gastos",{"$f":"Analítico!$B$78","v":"Manutenção"},"SETEMBRO","2024-09-01",{"$f":"Analítico!K78","v":0}]
[null,"Despesa","Outros Gastos",{"$f":"Analítico!$B$79","v":"Material Escolar"},"SETEMBRO","2024-09-01",{"$f":"Analítico!K79","v":0}]
[null,"Despesa","Outros Gastos",{"$f":"Analítico!$B$80","v":"Outros"},"SETEMBRO","2024-09-01",{"$f":"Analítico!K80","v":0}]
[null,"Despesa","Outros Gastos",{"$f":"Analítico!$B$81","v":"Outros Seguros"},"SETEMBRO","2024-09-01",{"$f":"Analítico!K81","v":0}]
[null,"Despesa","Outros Gastos",{"$f":"Analítico!$B$82","v":"Presentes"},"SETEMBRO","2024-09-01",{"$f":"Analítico!K82","v":0}]
[null,"Despesa","Outros Gastos",{"$f":"Analítico!$B$83","v":"Roupas"},"SETEMBRO","2024-09-01",{"$f":"Analítico!K83","v":0}]
[null,"Investimentos","Investimentos",{"$f":"Analítico!$B$90","v":"Previdência Privada"},"SETEMBRO","2024-09-01",{"$f":"Analítico!K90","v":0}]
[null,"Investimentos","Investimentos",{"$f":"Analítico!$B$91","v":"Renda Variável"},"SETEMBRO","2024-09-01",{"$f":"Analítico!K91","v":0}]
[null,"Investimentos","Investimentos",{"$f":"Analítico!$B$92","v":"Renda Fixa"},"SETEMBRO","2024-09-01",{"$f":"Analítico!K92","v":0}]
[null,"Investimentos","Investimentos",{"$f":"Analítico!$B$93","v":"Tesouro Direto"},"SETEMBRO","2024-09-01",{"$f":"Analítico!K93","v":0}]
[null,"Investimentos","Investimentos",{"$f":"Analítico!$B$94","v":"Fundos de Investimentos"},"SETEMBRO","2024-09-01",{"$f":"Analítico!K94","v":0}]
[null,"Investimentos","Investimentos",{"$f":"Analítico!$B$95","v":"Outros"},"SETEMBRO","2024-09-01",{"$f":"Analítico!K95","v":0}]
[null,"Receita","Receita",{"$f":"Analítico!$B$15","v":"Salário 1"},"OUTUBRO","2024-10-01",{"$f":"Analítico!L15","v":0}]
[null,"Receita","Receita",{"$f":"Analítico!$B$16","v":"Salário 2"},"OUTUBRO","2024-10-01",{"$f":"Analítico!L16","v":0}]
[null,"Receita","Receita",{"$f":"Analítico!$B$17","v":"Renda Extra (aluguel)"},"OUTUBRO","2024-10-01",{"$f":"Analítico!L17","v":0}]
[null,"Despesa","Residência",{"$f":"Analítico!$B$23","v":"Aluguel"},"OUTUBRO","2024-10-01",{"$f":"Analítico!L23","v":0}]
[null,"Despesa","Residência",{"$f":"Analítico!$B$24","v":"Prestação Imóvel"},"OUTUBRO","2024-10-01",{"$f":"Analítico!L24","v":0}]
[null,"Despesa","Residência",{"$f":"Analítico!$B$25","v":"Água"},"OUTUBRO","2024-10-01",{"$f":"Analítico!L25","v":0}]
[null,"Despesa","Residência",{"$f":"Analítico!$B$26","v":"Luz"},"OUTUBRO","2024-10-01",{"$f":"Analítico!L26","v":0}]
[null,"Despesa","Residência",{"$f":"Analítico!$B$27","v":"Gás"},"OUTUBRO","2024-10-01",{"$f":"Analítico!L27","v":0}]
[null,"Despesa","Residência",{"$f":"Analítico!$B$28","v":"Condomínio"},"OUTUBRO","2024-10-01",{"$f":"Analítico!L28","v":0}]
[null,"Despesa","Residência",{"$f":"Analítico!$B$29","v":"IPTU"},"OUTUBRO","2024-10-01",{"$f":"Analítico!L29","v":0}]
[null,"Despesa","Residência",{"$f":"Analítico!$B$30","v":"Internet"},"OUTUBRO","2024-10-01",{"$f":"Analítico!L30","v":0}]
[null,"Despesa","Residência",{"$f":"Analítico!$B$31","v":"TV à cabo"},"OUTUBRO","2024-10-01",{"$f":"Analítico!L31","v":0}]
[null,"Despesa","Residência",{"$f":"Analítico!$B$32","v":"Assinaturas"},"OUTUBRO","2024-10-01",{"$f":"Analítico!L32","v":0}]
[null,"Despesa","Residência",{"$f":"Analítico!$B$33","v":"Telefone Celular 1"},"OUTUBRO","2024-10-01",{"$f":"Analítico!L33","v":0}]
[null,"Despesa","Residência",{"$f":"Analítico!$B$34","v":"Telefone Celular 2"},"OUTUBRO","2024-10-01",{"$f":"Analítico!L34","v":0}]
[null,"Despesa","Alimentação",{"$f":"Analítico!$B$39","v":"Supermercado"},"OUTUBRO","2024-10-01",{"$f":"Analítico!L39","v":0}]
[null,"Despesa","Alimentação",{"$f":"Analítico!$B$40","v":"Restaurantes"},"OUTUBRO","2024-10-01",{"$f":"Analítico!L40","v":0}]
[null,"Despesa","Alimentação",{"$f":"Analítico!$B$41","v":"Padaria"},"OUTUBRO","2024-10-01",{"$f":"Analítico!L41","v":0}]
[null,"Despesa","Alimentação",{"$f":"Analítico!$B$42","v":"Feira"},"OUTUBRO","2024-10-01",{"$f":"Analítico!L42","v":0}]
[null,"Despesa","Saúde",{"$f":"Analítico!$B$47","v":"Gastos Médicos"},"OUTUBRO","2024-10-01",{"$f":"Analítico!L47","v":0}]
[null,"Despesa","Saúde",{"$f":"Analítico!$B$48","v":"Dentista"},"OUTUBRO","2024-10-01",{"$f":"Analítico!L48","v":0}]
[null,"Despesa","Saúde",{"$f":"Analítico!$B$49","v":"Plano de Saúde"},"OUTUBRO","2024-10-01",{"$f":"Analítico!L49","v":0}]
[null,"Despesa","Saúde",{"$f":"Analítico!$B$50","v":"Farmácia"},"OUTUBRO","2024-10-01",{"$f":"Analítico!L50","v":0}]
[null,"Despesa","Transporte",{"$f":"Analítico!$B$55","v":"Parcela Automóvel"},"OUTUBRO","2024-10-01",{"$f":"Analítico!L55","v":0}]
[null,"Despesa","Transporte",{"$f":"Analítico!$B$56","v":"Seguro"},"OUTUBRO","2024-10-01",{"$f":"Analítico!L56","v":0}]
[null,"Despesa","Transporte",{"$f":"Analítico!$B$57","v":"Combustível"},"OUTUBRO","2024-10-01",{"$f":"Analítico!L57","v":0}]
[null,"Despesa","Transporte",{"$f":"Analítico!$B$58","v":"Manuteção automóvel"},"OUTUBRO","2024-10-01",{"$f":"Analítico!L58","v":0}]
[null,"Despesa","Transporte",{"$f":"Analítico!$B$59","v":"IPVA + Licenciamento"},"OUTUBRO","2024-10-01",{"$f":"Analítico!L59","v":0}]
[null,"Despesa","Transporte",{"$f":"Analítico!$B$60","v":"Uber / Táxi"},"OUTUBRO","2024-10-01",{"$f":"Analítico!L60","v":0}]
[null,"Despesa","Lazer",{"$f":"Analítico!$B$65","v":"Cinema"},"OUTUBRO","2024-10-01",{"$f":"Analítico!L65","v":0}]
[null,"Despesa","Lazer",{"$f":"Analítico!$B$66","v":"Academia"},"OUTUBRO","2024-10-01",{"$f":"Analítico!L66","v":0}]
[null,"Despesa","Lazer",{"$f":"Analítico!$B$67","v":"Outros"},"OUTUBRO","2024-10-01",{"$f":"Analítico!L67","v":0}]
[null,"Despesa","Outros Gastos",{"$f":"Analítico!$B$72","v":"Associações"},"OUTUBRO","2024-10-01",{"$f":"Analítico!L72","v":0}]
[null,"Despesa","Outros Gastos",{"$f":"Analítico!$B$73","v":"Educação"},"OUTUBRO","2024-10-01",{"$f":"Analítico!L73","v":0}]
[null,"Despesa","Outros Gastos",{"$f":"Analítico!$B$74","v":"Educação Filhos"},"OUTUBRO","2024-10-01",{"$f":"Analítico!L74","v":0}]
[null,"Despesa","Outros Gastos",{"$f":"Analítico!$B$75","v":"Eletrodomésticos"},"OUTUBRO","2024-10-01",{"$f":"Analítico!L75","v":0}]
[null,"Despesa","Outros Gastos",{"$f":"Analítico!$B$76","v":"Gastos com Pet"},"OUTUBRO","2024-10-01",{"$f":"Analítico!L76","v":0}]
[null,"Despesa","Outros Gastos",{"$f":"Analítico!$B$77","v":"Impostos"},"OUTUBRO","2024-10-01",{"$f":"Analítico!L77","v":0}]
[null,"Despesa","Outros Gastos",{"$f":"Analítico!$B$78","v":"Manutenção"},"OUTUBRO","2024-10-01",{"$f":"Analítico!L78","v":0}]
[null,"Despesa","Outros Gastos",{"$f":"Analítico!$B$79","v":"Material Escolar"},"OUTUBRO","2024-10-01",{"$f":"Analítico!L79","v":0}]
[null,"Despesa","Outros Gastos",{"$f":"Analítico!$B$80","v":"Outros"},"OUTUBRO","2024-10-01",{"$f":"Analítico!L80","v":0}]
[null,"Despesa","Outros Gastos",{"$f":"Analítico!$B$81","v":"Outros Seguros"},"OUTUBRO","2024-10-01",{"$f":"Analítico!L81","v":0}]
[null,"Despesa","Outros Gastos",{"$f":"Analítico!$B$82","v":"Presentes"},"OUTUBRO","2024-10-01",{"$f":"Analítico!L82","v":0}]
[null,"Despesa","Outros Gastos",{"$f":"Analítico!$B$83","v":"Roupas"},"OUTUBRO","2024-10-01",{"$f":"Analítico!L83","v":0}]
[null,"Investimentos","Investimentos",{"$f":"Analítico!$B$90","v":"Previdência Privada"},"OUTUBRO","2024-10-01",{"$f":"Analítico!L90","v":0}]
[null,"Investimentos","Investimentos",{"$f":"Analítico!$B$91","v":"Renda Variável"},"OUTUBRO","2024-10-01",{"$f":"Analítico!L91","v":0}]
[null,"Investimentos","Investimentos",{"$f":"Analítico!$B$92","v":"Renda Fixa"},"OUTUBRO","2024-10-01",{"$f":"Analítico!L92","v":0}]
[null,"Investimentos","Investimentos",{"$f":"Analítico!$B$93","v":"Tesouro Direto"},"OUTUBRO","2024-10-01",{"$f":"Analítico!L93","v":0}]
[null,"Investimentos","Investimentos",{"$f":"Analítico!$B$94","v":"Fundos de Investimentos"},"OUTUBRO","2024-10-01",{"$f":"Analítico!L94","v":0}]
[null,"Investimentos","Investimentos",{"$f":"Analítico!$B$95","v":"Outros"},"OUTUBRO","2024-10-01",{"$f":"Analítico!L95","v":0}]
[null,"Receita","Receita",{"$f":"Analítico!$B$15","v":"Salário 1"},"NOVEMBRO","2024-11-01",{"$f":"Analítico!M15","v":0}]
[null,"Receita","Receita",{"$f":"Analítico!$B$16","v":"Salário 2"},"NOVEMBRO","2024-11-01",{"$f":"Analítico!M16","v":0}]
[null,"Receita","Receita",{"$f":"Analítico!$B$17","v":"Renda Extra (aluguel)"},"NOVEMBRO","2024-11-01",{"$f":"Analítico!M17","v":0}]
[null,"Despesa","Residência",{"$f":"Analítico!$B$23","v":"Aluguel"},"NOVEMBRO","2024-11-01",{"$f":"Analítico!M23","v":0}]
[null,"Despesa","Residência",{"$f":"Analítico!$B$24","v":"Prestação Imóvel"},"NOVEMBRO","2024-11-01",{"$f":"Analítico!M24","v":0}]
[null,"Despesa","Residência",{"$f":"Analítico!$B$25","v":"Água"},"NOVEMBRO","2024-11-01",{"$f":"Analítico!M25","v":0}]
[null,"Despesa","Residência",{"$f":"Analítico!$B$26","v":"Luz"},"NOVEMBRO","2024-11-01",{"$f":"Analítico!M26","v":0}]
[null,"Despesa","Residência",{"$f":"Analítico!$B$27","v":"Gás"},"NOVEMBRO","2024-11-01",{"$f":"Analítico!M27","v":0}]
[null,"Despesa","Residência",{"$f":"Analítico!$B$28","v":"Condomínio"},"NOVEMBRO","2024-11-01",{"$f":"Analítico!M28","v":0}]
[null,"Despesa","Residência",{"$f":"Analítico!$B$29","v":"IPTU"},"NOVEMBRO","2024-11-01",{"$f":"Analítico!M29","v":0}]
[null,"Despesa","Residência",{"$f":"Analítico!$B$30","v":"Internet"},"NOVEMBRO","2024-11-01",{"$f":"Analítico!M30","v":0}]
[null,"Despesa","Residência",{"$f":"Analítico!$B$31","v":"TV à cabo"},"NOVEMBRO","2024-11-01",{"$f":"Analítico!M31","v":0}]
[null,"Despesa","Residência",{"$f":"Analítico!$B$32","v":"Assinaturas"},"NOVEMBRO","2024-11-01",{"$f":"Analítico!M32","v":0}]
[null,"Despesa","Residência",{"$f":"Analítico!$B$33","v":"Telefone Celular 1"},"NOVEMBRO","2024-11-01",{"$f":"Analítico!M33","v":0}]
[null,"Despesa","Residência",{"$f":"Analítico!$B$34","v":"Telefone Celular 2"},"NOVEMBRO","2024-11-01",{"$f":"Analítico!M34","v":0}]
[null,"Despesa","Alimentação",{"$f":"Analítico!$B$39","v":"Supermercado"},"NOVEMBRO","2024-11-01",{"$f":"Analítico!M39","v":0}]
[null,"Despesa","Alimentação",{"$f":"Analítico!$B$40","v":"Restaurantes"},"NOVEMBRO","2024-11-01",{"$f":"Analítico!M40","v":0}]
[null,"Despesa","Alimentação",{"$f":"Analítico!$B$41","v":"Padaria"},"NOVEMBRO","2024-11-01",{"$f":"Analítico!M41","v":0}]
[null,"Despesa","Alimentação",{"$f":"Analítico!$B$42","v":"Feira"},"NOVEMBRO","2024-11-01",{"$f":"Analítico!M42","v":0}]
[null,"Despesa","Saúde",{"$f":"Analítico!$B$47","v":"Gastos Médicos"},"NOVEMBRO","2024-11-01",{"$f":"Analítico!M47","v":0}]
[null,"Despesa","Saúde",{"$f":"Analítico!$B$48","v":"Dentista"},"NOVEMBRO","2024-11-01",{"$f":"Analítico!M48","v":0}]
[null,"Despesa","Saúde",{"$f":"Analítico!$B$49","v":"Plano de Saúde"},"NOVEMBRO","2024-11-01",{"$f":"Analítico!M49","v":0}]
[null,"Despesa","Saúde",{"$f":"Analítico!$B$50","v":"Farmácia"},"NOVEMBRO","2024-11-01",{"$f":"Analítico!M50","v":0}]
[null,"Despesa","Transporte",{"$f":"Analítico!$B$55","v":"Parcela Automóvel"},"NOVEMBRO","2024-11-01",{"$f":"Analítico!M55","v":0}]
[null,"Despesa","Transporte",{"$f":"Analítico!$B$56","v":"Seguro"},"NOVEMBRO","2024-11-01",{"$f":"Analítico!M56","v":0}]
[null,"Despesa","Transporte",{"$f":"Analítico!$B$57","v":"Combustível"},"NOVEMBRO","2024-11-01",{"$f":"Analítico!M57","v":0}]
[null,"Despesa","Transporte",{"$f":"Analítico!$B$58","v":"Manuteção automóvel"},"NOVEMBRO","2024-11-01",{"$f":"Analítico!M58","v":0}]
[null,"Despesa","Transporte",{"$f":"Analítico!$B$59","v":"IPVA + Licenciamento"},"NOVEMBRO","2024-11-01",{"$f":"Analítico!M59","v":0}]
[null,"Despesa","Transporte",{"$f":"Analítico!$B$60","v":"Uber / Táxi"},"NOVEMBRO","2024-11-01",{"$f":"Analítico!M60","v":0}]
[null,"Despesa","Lazer",{"$f":"Analítico!$B$65","v":"Cinema"},"NOVEMBRO","2024-11-01",{"$f":"Analítico!M65","v":0}]
[null,"Despesa","Lazer",{"$f":"Analítico!$B$66","v":"Academia"},"NOVEMBRO","2024-11-01",{"$f":"Analítico!M66","v":0}]
[null,"Despesa","Lazer",{"$f":"Analítico!$B$67","v":"Outros"},"NOVEMBRO","2024-11-01",{"$f":"Analítico!M67","v":0}]
[null,"Despesa","Outros Gastos",{"$f":"Analítico!$B$72","v":"Associações"},"NOVEMBRO","2024-11-01",{"$f":"Analítico!M72","v":0}]
[null,"Despesa","Outros Gastos",{"$f":"Analítico!$B$73","v":"Educação"},"NOVEMBRO","2024-11-01",{"$f":"Analítico!M73","v":0}]
[null,"Despesa","Outros Gastos",{"$f":"Analítico!$B$74","v":"Educação Filhos"},"NOVEMBRO","2024-11-01",{"$f":"Analítico!M74","v":0}]
[null,"Despesa","Outros Gastos",{"$f":"Analítico!$B$75","v":"Eletrodomésticos"},"NOVEMBRO","2024-11-01",{"$f":"Analítico!M75","v":0}]
[null,"Despesa","Outros Gastos",{"$f":"Analítico!$B$76","v":"Gastos com Pet"},"NOVEMBRO","2024-11-01",{"$f":"Analítico!M76","v":0}]
[null,"Despesa","Outros Gastos",{"$f":"Analítico!$B$77","v":"Impostos"},"NOVEMBRO","2024-11-01",{"$f":"Analítico!M77","v":0}]
[null,"Despesa","Outros Gastos",{"$f":"Analítico!$B$78","v":"Manutenção"},"NOVEMBRO","2024-11-01",{"$f":"Analítico!M78","v":0}]
[null,"Despesa","Outros Gastos",{"$f":"Analítico!$B$79","v":"Material Escolar"},"NOVEMBRO","2024-11-01",{"$f":"Analítico!M79","v":0}]
[null,"Despesa","Outros Gastos",{"$f":"Analítico!$B$80","v":"Outros"},"NOVEMBRO","2024-11-01",{"$f":"Analítico!M80","v":0}]
[null,"Despesa","Outros Gastos",{"$f":"Analítico!$B$81","v":"Outros Seguros"},"NOVEMBRO","2024-11-01",{"$f":"Analítico!M81","v":0}]
[null,"Despesa","Outros Gastos",{"$f":"Analítico!$B$82","v":"Presentes"},"NOVEMBRO","2024-11-01",{"$f":"Analítico!M82","v":0}]
[null,"Despesa","Outros Gastos",{"$f":"Analítico!$B$83","v":"Roupas"},"NOVEMBRO","2024-11-01",{"$f":"Analítico!M83","v":0}]
[null,"Investimentos","Investimentos",{"$f":"Analítico!$B$90","v":"Previdência Privada"},"NOVEMBRO","2024-11-01",{"$f":"Analítico!M90","v":0}]
[null,"Investimentos","Investimentos",{"$f":"Analítico!$B$91","v":"Renda Variável"},"NOVEMBRO","2024-11-01",{"$f":"Analítico!M91","v":0}]
[null,"Investimentos","Investimentos",{"$f":"Analítico!$B$92","v":"Renda Fixa"},"NOVEMBRO","2024-11-01",{"$f":"Analítico!M92","v":0}]
[null,"Investimentos","Investimentos",{"$f":"Analítico!$B$93","v":"Tesouro Direto"},"NOVEMBRO","2024-11-01",{"$f":"Analítico!M93","v":0}]
[null,"Investimentos","Investimentos",{"$f":"Analítico!$B$94","v":"Fundos de Investimentos"},"NOVEMBRO","2024-11-01",{"$f":"Analítico!M94","v":0}]
[null,"Investimentos","Investimentos",{"$f":"Analítico!$B$95","v":"Outros"},"NOVEMBRO","2024-11-01",{"$f":"Analítico!M95","v":0}]
[null,"Receita","Receita",{"$f":"Analítico!$B$15","v":"Salário 1"},"DEZEMBRO","2024-12-01",{"$f":"Analítico!N15","v":0}]
[null,"Receita","Receita",{"$f":"Analítico!$B$16","v":"Salário 2"},"DEZEMBRO","2024-12-01",{"$f":"Analítico!N16","v":0}]
[null,"Receita","Receita",{"$f":"Analítico!$B$17","v":"Renda Extra (aluguel)"},"DEZEMBRO","2024-12-01",{"$f":"Analítico!N17","v":0}]
[null,"Despesa","Residência",{"$f":"Analítico!$B$23","v":"Aluguel"},"DEZEMBRO","2024-12-01",{"$f":"Analítico!N23","v":0}]
[null,"Despesa","Residência",{"$f":"Analítico!$B$24","v":"Prestação Imóvel"},"DEZEMBRO","2024-12-01",{"$f":"Analítico!N24","v":0}]
[null,"Despesa","Residência",{"$f":"Analítico!$B$25","v":"Água"},"DEZEMBRO","2024-12-01",{"$f":"Analítico!N25","v":0}]
[null,"Despesa","Residência",{"$f":"Analítico!$B$26","v":"Luz"},"DEZEMBRO","2024-12-01",{"$f":"Analítico!N26","v":0}]
[null,"Despesa","Residência",{"$f":"Analítico!$B$27","v":"Gás"},"DEZEMBRO","2024-12-01",{"$f":"Analítico!N27","v":0}]
[null,"Despesa","Residência",{"$f":"Analítico!$B$28","v":"Condomínio"},"DEZEMBRO","2024-12-01",{"$f":"Analítico!N28","v":0}]
[null,"Despesa","Residência",{"$f":"Analítico!$B$29","v":"IPTU"},"DEZEMBRO","2024-12-01",{"$f":"Analítico!N29","v":0}]
[null,"Despesa","Residência",{"$f":"Analítico!$B$30","v":"Internet"},"DEZEMBRO","2024-12-01",{"$f":"Analítico!N30","v":0}]
[null,"Despesa","Residência",{"$f":"Analítico!$B$31","v":"TV à cabo"},"DEZEMBRO","2024-12-01",{"$f":"Analítico!N31","v":0}]
[null,"Despesa","Residência",{"$f":"Analítico!$B$32","v":"Assinaturas"},"DEZEMBRO","2024-12-01",{"$f":"Analítico!N32","v":0}]
[null,"Despesa","Residência",{"$f":"Analítico!$B$33","v":"Telefone Celular 1"},"DEZEMBRO","2024-12-01",{"$f":"Analítico!N33","v":0}]
[null,"Despesa","Residência",{"$f":"Analítico!$B$34","v":"Telefone Celular 2"},"DEZEMBRO","2024-12-01",{"$f":"Analítico!N34","v":0}]
[null,"Despesa","Alimentação",{"$f":"Analítico!$B$39","v":"Supermercado"},"DEZEMBRO","2024-12-01",{"$f":"Analítico!N39","v":0}]
[null,"Despesa","Alimentação",{"$f":"Analítico!$B$40","v":"Restaurantes"},"DEZEMBRO","2024-12-01",{"$f":"Analítico!N40","v":0}]
[null,"Despesa","Alimentação",{"$f":"Analítico!$B$41","v":"Padaria"},"DEZEMBRO","2024-12-01",{"$f":"Analítico!N41","v":0}]
[null,"Despesa","Alimentação",{"$f":"Analítico!$B$42","v":"Feira"},"DEZEMBRO","2024-12-01",{"$f":"Analítico!N42","v":0}]
[null,"Despesa","Saúde",{"$f":"Analítico!$B$47","v":"Gastos Médicos"},"DEZEMBRO","2024-12-01",{"$f":"Analítico!N47","v":0}]
[null,"Despesa","Saúde",{"$f":"Analítico!$B$48","v":"Dentista"},"DEZEMBRO","2024-12-01",{"$f":"Analítico!N48","v":0}]
[null,"Despesa","Saúde",{"$f":"Analítico!$B$49","v":"Plano de Saúde"},"DEZEMBRO","2024-12-01",{"$f":"Analítico!N49","v":0}]
[null,"Despesa","Saúde",{"$f":"Analítico!$B$50","v":"Farmácia"},"DEZEMBRO","2024-12-01",{"$f":"Analítico!N50","v":0}]
[null,"Despesa","Transporte",{"$f":"Analítico!$B$55","v":"Parcela Automóvel"},"DEZEMBRO","2024-12-01",{"$f":"Analítico!N55","v":0}]
[null,"Despesa","Transporte",{"$f":"Analítico!$B$56","v":"Seguro"},"DEZEMBRO","2024-12-01",{"$f":"Analítico!N56","v":0}]
[null,"Despesa","Transporte",{"$f":"Analítico!$B$57","v":"Combustível"},"DEZEMBRO","2024-12-01",{"$f":"Analítico!N57","v":0}]
[null,"Despesa","Transporte",{"$f":"Analítico!$B$58","v":"Manuteção automóvel"},"DEZEMBRO","2024-12-01",{"$f":"Analítico!N58","v":0}]
[null,"Despesa","Transporte",{"$f":"Analítico!$B$59","v":"IPVA + Licenciamento"},"DEZEMBRO","2024-12-01",{"$f":"Analítico!N59","v":0}]
[null,"Despesa","Transporte",{"$f":"Analítico!$B$60","v":"Uber / Táxi"},"DEZEMBRO","2024-12-01",{"$f":"Analítico!N60","v":0}]
[null,"Despesa","Lazer",{"$f":"Analítico!$B$65","v":"Cinema"},"DEZEMBRO","2024-12-01",{"$f":"Analítico!N65","v":0}]
[null,"Despesa","Lazer",{"$f":"Analítico!$B$66","v":"Academia"},"DEZEMBRO","2024-12-01",{"$f":"Analítico!N66","v":0}]
[null,"Despesa","Lazer",{"$f":"Analítico!$B$67","v":"Outros"},"DEZEMBRO","2024-12-01",{"$f":"Analítico!N67","v":0}]
[null,"Despesa","Outros Gastos",{"$f":"Analítico!$B$72","v":"Associações"},"DEZEMBRO","2024-12-01",{"$f":"Analítico!N72","v":0}]
[null,"Despesa","Outros Gastos",{"$f":"Analítico!$B$73","v":"Educação"},"DEZEMBRO","2024-12-01",{"$f":"Analítico!N73","v":0}]
[null,"Despesa","Outros Gastos",{"$f":"Analítico!$B$74","v":"Educação Filhos"},"DEZEMBRO","2024-12-01",{"$f":"Analítico!N74","v":0}]
[null,"Despesa","Outros Gastos",{"$f":"Analítico!$B$75","v":"Eletrodomésticos"},"DEZEMBRO","2024-12-01",{"$f":"Analítico!N75","v":0}]
[null,"Despesa","Outros Gastos",{"$f":"Analítico!$B$76","v":"Gastos com Pet"},"DEZEMBRO","2024-12-01",{"$f":"Analítico!N76","v":0}]
[null,"Despesa","Outros Gastos",{"$f":"Analítico!$B$77","v":"Impostos"},"DEZEMBRO","2024-12-01",{"$f":"Analítico!N77","v":0}]
[null,"Despesa","Outros Gastos",{"$f":"Analítico!$B$78","v":"Manutenção"},"DEZEMBRO","2024-12-01",{"$f":"Analítico!N78","v":0}]
[null,"Despesa","Outros Gastos",{"$f":"Analítico!$B$79","v":"Material Escolar"},"DEZEMBRO","2024-12-01",{"$f":"Analítico!N79","v":0}]
[null,"Despesa","Outros Gastos",{"$f":"Analítico!$B$80","v":"Outros"},"DEZEMBRO","2024-12-01",{"$f":"Analítico!N80","v":0}]
[null,"Despesa","Outros Gastos",{"$f":"Analítico!$B$81","v":"Outros Seguros"},"DEZEMBRO","2024-12-01",{"$f":"Analítico!N81","v":0}]
[null,"Despesa","Outros Gastos",{"$f":"Analítico!$B$82","v":"Presentes"},"DEZEMBRO","2024-12-01",{"$f":"Analítico!N82","v":0}]
[null,"Despesa","Outros Gastos",{"$f":"Analítico!$B$83","v":"Roupas"},"DEZEMBRO","2024-12-01",{"$f":"Analítico!N83","v":0}]
[null,"Investimentos","Investimentos",{"$f":"Analítico!$B$90","v":"Previdência Privada"},"DEZEMBRO","2024-12-01",{"$f":"Analítico!N90","v":0}]
[null,"Investimentos","Investimentos",{"$f":"Analítico!$B$91","v":"Renda Variável"},"DEZEMBRO","2024-12-01",{"$f":"Analítico!N91","v":0}]
[null,"Investimentos","Investimentos",{"$f":"Analítico!$B$92","v":"Renda Fixa"},"DEZEMBRO","2024-12-01",{"$f":"Analítico!N92","v":0}]
[null,"Investimentos","Investimentos",{"$f":"Analítico!$B$93","v":"Tesouro Direto"},"DEZEMBRO","2024-12-01",{"$f":"Analítico!N93","v":0}]
[null,"Investimentos","Investimentos",{"$f":"Analítico!$B$94","v":"Fundos de Investimentos"},"DEZEMBRO","2024-12-01",{"$f":"Analítico!N94","v":0}]
[null,"Investimentos","Investimentos",{"$f":"Analítico!$B$95","v":"Outros"},"DEZEMBRO","2024-12-01",{"$f":"Analítico!N95","v":0}]